{"text_format":"3","workbook":"xlsx","n_sheets":4,"sheets":["SAŽETAK PRORAČUNA ZA OVU GODINU","SAŽETAK MJESEČNIH TROŠKOVA","TROŠKOVI PO STAVKAMA","DOBROTV. UDRUGE I POKROVITELJ."],"not_rendered":{"images":1,"defined_names":15},"read":"whole","date_system":"1900"}

{"sheet":"SAŽETAK PRORAČUNA ZA OVU GODINU","index":0,"n_rows":16,"n_cols":7,"rows_kept":16,"merged":[[1,1,1,4]]}
[]
[null,"STVARNO u odnosu na PRORAČUN ZA TEKUĆU GODINU",{"$nulls":3},"GODINA",{"$f":"YEAR(TODAY())","v":2019}]
[null,"Šifra glavne knjige","Naziv računa","Stvarno","Proračun","PREOSTALO (kn)","PREOSTALO (%)"]
[null,1000,"Oglašavanje",{"$f":"SUMIF(SažetakMjesečnihTroškova[Šifra glavne knjige],TablicaProtekliDioGodine[[#This Row],[Šifra glavne knjige]],SažetakMjesečnihTroškova[Zbroj])","v":{"v":0,"d":"0.00 kn"}},{"v":100000,"d":"100,000.00 kn"},{"$f":"IF(TablicaProtekliDioGodine[[#This Row],[Proračun]]=\"\",\"\",TablicaProtekliDioGodine[[#This Row],[Proračun]]-TablicaProtekliDioGodine[[#This Row],[Stvarno]])","v":{"v":100000,"d":"100,000.00 kn"}},{"$f":"IFERROR(TablicaProtekliDioGodine[[#This Row],[PREOSTALO (kn)]]/TablicaProtekliDioGodine[[#This Row],[Proračun]],\"\")","v":{"v":1,"d":"100.00%"}}]
[null,2000,"Uredska oprema",{"$f":"SUMIF(SažetakMjesečnihTroškova[Šifra glavne knjige],TablicaProtekliDioGodine[[#This Row],[Šifra glavne knjige]],SažetakMjesečnihTroškova[Zbroj])","v":{"v":0,"d":"0.00 kn"}},{"v":100000,"d":"100,000.00 kn"},{"$f":"IF(TablicaProtekliDioGodine[[#This Row],[Proračun]]=\"\",\"\",TablicaProtekliDioGodine[[#This Row],[Proračun]]-TablicaProtekliDioGodine[[#This Row],[Stvarno]])","v":{"v":100000,"d":"100,000.00 kn"}},{"$f":"IFERROR(TablicaProtekliDioGodine[[#This Row],[PREOSTALO (kn)]]/TablicaProtekliDioGodine[[#This Row],[Proračun]],\"\")","v":{"v":1,"d":"100.00%"}}]
[null,3000,"Pisači",{"$f":"SUMIF(SažetakMjesečnihTroškova[Šifra glavne knjige],TablicaProtekliDioGodine[[#This Row],[Šifra glavne knjige]],SažetakMjesečnihTroškova[Zbroj])","v":{"v":0,"d":"0.00 kn"}},{"v":100000,"d":"100,000.00 kn"},{"$f":"IF(TablicaProtekliDioGodine[[#This Row],[Proračun]]=\"\",\"\",TablicaProtekliDioGodine[[#This Row],[Proračun]]-TablicaProtekliDioGodine[[#This Row],[Stvarno]])","v":{"v":100000,"d":"100,000.00 kn"}},{"$f":"IFERROR(TablicaProtekliDioGodine[[#This Row],[PREOSTALO (kn)]]/TablicaProtekliDioGodine[[#This Row],[Proračun]],\"\")","v":{"v":1,"d":"100.00%"}}]
[null,4000,"Troškovi poslužitelja",{"$f":"SUMIF(SažetakMjesečnihTroškova[Šifra glavne knjige],TablicaProtekliDioGodine[[#This Row],[Šifra glavne knjige]],SažetakMjesečnihTroškova[Zbroj])","v":{"v":0,"d":"0.00 kn"}},{"v":100000,"d":"100,000.00 kn"},{"$f":"IF(TablicaProtekliDioGodine[[#This Row],[Proračun]]=\"\",\"\",TablicaProtekliDioGodine[[#This Row],[Proračun]]-TablicaProtekliDioGodine[[#This Row],[Stvarno]])","v":{"v":100000,"d":"100,000.00 kn"}},{"$f":"IFERROR(TablicaProtekliDioGodine[[#This Row],[PREOSTALO (kn)]]/TablicaProtekliDioGodine[[#This Row],[Proračun]],\"\")","v":{"v":1,"d":"100.00%"}}]
[null,5000,"Potrepštine",{"$f":"SUMIF(SažetakMjesečnihTroškova[Šifra glavne knjige],TablicaProtekliDioGodine[[#This Row],[Šifra glavne knjige]],SažetakMjesečnihTroškova[Zbroj])","v":{"v":0,"d":"0.00 kn"}},{"v":50000,"d":"50,000.00 kn"},{"$f":"IF(TablicaProtekliDioGodine[[#This Row],[Proračun]]=\"\",\"\",TablicaProtekliDioGodine[[#This Row],[Proračun]]-TablicaProtekliDioGodine[[#This Row],[Stvarno]])","v":{"v":50000,"d":"50,000.00 kn"}},{"$f":"IFERROR(TablicaProtekliDioGodine[[#This Row],[PREOSTALO (kn)]]/TablicaProtekliDioGodine[[#This Row],[Proračun]],\"\")","v":{"v":1,"d":"100.00%"}}]
[null,6000,"Troškovi klijenata",{"$f":"SUMIF(SažetakMjesečnihTroškova[Šifra glavne knjige],TablicaProtekliDioGodine[[#This Row],[Šifra glavne knjige]],SažetakMjesečnihTroškova[Zbroj])","v":{"v":0,"d":"0.00 kn"}},{"v":25000,"d":"25,000.00 kn"},{"$f":"IF(TablicaProtekliDioGodine[[#This Row],[Proračun]]=\"\",\"\",TablicaProtekliDioGodine[[#This Row],[Proračun]]-TablicaProtekliDioGodine[[#This Row],[Stvarno]])","v":{"v":25000,"d":"25,000.00 kn"}},{"$f":"IFERROR(TablicaProtekliDioGodine[[#This Row],[PREOSTALO (kn)]]/TablicaProtekliDioGodine[[#This Row],[Proračun]],\"\")","v":{"v":1,"d":"100.00%"}}]
[null,7000,"Računala",{"$f":"SUMIF(SažetakMjesečnihTroškova[Šifra glavne knjige],TablicaProtekliDioGodine[[#This Row],[Šifra glavne knjige]],SažetakMjesečnihTroškova[Zbroj])","v":{"v":0,"d":"0.00 kn"}},{"v":75000,"d":"75,000.00 kn"},{"$f":"IF(TablicaProtekliDioGodine[[#This Row],[Proračun]]=\"\",\"\",TablicaProtekliDioGodine[[#This Row],[Proračun]]-TablicaProtekliDioGodine[[#This Row],[Stvarno]])","v":{"v":75000,"d":"75,000.00 kn"}},{"$f":"IFERROR(TablicaProtekliDioGodine[[#This Row],[PREOSTALO (kn)]]/TablicaProtekliDioGodine[[#This Row],[Proračun]],\"\")","v":{"v":1,"d":"100.00%"}}]
[null,8000,"Zdravstveno osiguranje",{"$f":"SUMIF(SažetakMjesečnihTroškova[Šifra glavne knjige],TablicaProtekliDioGodine[[#This Row],[Šifra glavne knjige]],SažetakMjesečnihTroškova[Zbroj])","v":{"v":0,"d":"0.00 kn"}},{"v":65000,"d":"65,000.00 kn"},{"$f":"IF(TablicaProtekliDioGodine[[#This Row],[Proračun]]=\"\",\"\",TablicaProtekliDioGodine[[#This Row],[Proračun]]-TablicaProtekliDioGodine[[#This Row],[Stvarno]])","v":{"v":65000,"d":"65,000.00 kn"}},{"$f":"IFERROR(TablicaProtekliDioGodine[[#This Row],[PREOSTALO (kn)]]/TablicaProtekliDioGodine[[#This Row],[Proračun]],\"\")","v":{"v":1,"d":"100.00%"}}]
[null,9000,"Troškovi gradnje",{"$f":"SUMIF(SažetakMjesečnihTroškova[Šifra glavne knjige],TablicaProtekliDioGodine[[#This Row],[Šifra glavne knjige]],SažetakMjesečnihTroškova[Zbroj])","v":{"v":0,"d":"0.00 kn"}},{"v":125000,"d":"125,000.00 kn"},{"$f":"IF(TablicaProtekliDioGodine[[#This Row],[Proračun]]=\"\",\"\",TablicaProtekliDioGodine[[#This Row],[Proračun]]-TablicaProtekliDioGodine[[#This Row],[Stvarno]])","v":{"v":125000,"d":"125,000.00 kn"}},{"$f":"IFERROR(TablicaProtekliDioGodine[[#This Row],[PREOSTALO (kn)]]/TablicaProtekliDioGodine[[#This Row],[Proračun]],\"\")","v":{"v":1,"d":"100.00%"}}]
[null,10000,"Marketing",{"$f":"SUMIF(SažetakMjesečnihTroškova[Šifra glavne knjige],TablicaProtekliDioGodine[[#This Row],[Šifra glavne knjige]],SažetakMjesečnihTroškova[Zbroj])","v":{"v":0,"d":"0.00 kn"}},{"v":100000,"d":"100,000.00 kn"},{"$f":"IF(TablicaProtekliDioGodine[[#This Row],[Proračun]]=\"\",\"\",TablicaProtekliDioGodine[[#This Row],[Proračun]]-TablicaProtekliDioGodine[[#This Row],[Stvarno]])","v":{"v":100000,"d":"100,000.00 kn"}},{"$f":"IFERROR(TablicaProtekliDioGodine[[#This Row],[PREOSTALO (kn)]]/TablicaProtekliDioGodine[[#This Row],[Proračun]],\"\")","v":{"v":1,"d":"100.00%"}}]
[null,11000,"Dobrotvorne udruge",{"$f":"SUMIF(SažetakMjesečnihTroškova[Šifra glavne knjige],TablicaProtekliDioGodine[[#This Row],[Šifra glavne knjige]],SažetakMjesečnihTroškova[Zbroj])","v":{"v":0,"d":"0.00 kn"}},{"v":250000,"d":"250,000.00 kn"},{"$f":"IF(TablicaProtekliDioGodine[[#This Row],[Proračun]]=\"\",\"\",TablicaProtekliDioGodine[[#This Row],[Proračun]]-TablicaProtekliDioGodine[[#This Row],[Stvarno]])","v":{"v":250000,"d":"250,000.00 kn"}},{"$f":"IFERROR(TablicaProtekliDioGodine[[#This Row],[PREOSTALO (kn)]]/TablicaProtekliDioGodine[[#This Row],[Proračun]],\"\")","v":{"v":1,"d":"100.00%"}}]
[null,12000,"Pokroviteljstva",{"$f":"SUMIF(SažetakMjesečnihTroškova[Šifra glavne knjige],TablicaProtekliDioGodine[[#This Row],[Šifra glavne knjige]],SažetakMjesečnihTroškova[Zbroj])","v":{"v":0,"d":"0.00 kn"}},{"v":50000,"d":"50,000.00 kn"},{"$f":"IF(TablicaProtekliDioGodine[[#This Row],[Proračun]]=\"\",\"\",TablicaProtekliDioGodine[[#This Row],[Proračun]]-TablicaProtekliDioGodine[[#This Row],[Stvarno]])","v":{"v":50000,"d":"50,000.00 kn"}},{"$f":"IFERROR(TablicaProtekliDioGodine[[#This Row],[PREOSTALO (kn)]]/TablicaProtekliDioGodine[[#This Row],[Proračun]],\"\")","v":{"v":1,"d":"100.00%"}}]
[null,"Zbroj",null,{"$f":"SUBTOTAL(109,TablicaProtekliDioGodine[Stvarno])","v":{"v":0,"d":"0.00 kn"}},{"$f":"SUBTOTAL(109,TablicaProtekliDioGodine[Proračun])","v":{"v":1140000,"d":"1,140,000.00 kn"}},{"$f":"SUBTOTAL(109,TablicaProtekliDioGodine[PREOSTALO (kn)])","v":{"v":1140000,"d":"1,140,000.00 kn"}},{"$f":"TablicaProtekliDioGodine[[#Totals],[PREOSTALO (kn)]]/TablicaProtekliDioGodine[[#Totals],[Proračun]]","v":{"v":1,"d":"100.00%"}}]

{"sheet":"SAŽETAK MJESEČNIH TROŠKOVA","index":1,"n_rows":18,"n_cols":17,"rows_kept":18,"merged":[[1,1,1,16]]}
[]
[null,"SAŽETAK MJESEČNIH TROŠKOVA"]
[null,"U ovoj se ćeliji nalazi rezač za filtriranje podataka po nazivima računa.",null,{"$f":"DATEVALUE(\"1-SIJ\"&_GODINA)","v":{"v":43466,"d":"4346600.00%"}},{"$f":"DATEVALUE(\"1-VEL\"&_GODINA)","v":{"v":43497,"d":"4349700.00%"}},{"$f":"DATEVALUE(\"1-OŽU\"&_GODINA)","v":{"v":43525,"d":"4352500.00%"}},{"$f":"DATEVALUE(\"1-TRA\"&_GODINA)","v":{"v":43556,"d":"4355600.00%"}},{"$f":"DATEVALUE(\"1-SVI\"&_GODINA)","v":{"v":43586,"d":"4358600.00%"}},{"$f":"DATEVALUE(\"1-LIP\"&_GODINA)","v":{"v":43617,"d":"4361700.00%"}},{"$f":"DATEVALUE(\"1-SRP\"&_GODINA)","v":{"v":43647,"d":"4364700.00%"}},{"$f":"DATEVALUE(\"1-KOL\"&_GODINA)","v":{"v":43678,"d":"4367800.00%"}},{"$f":"DATEVALUE(\"1-RUJ\"&_GODINA)","v":{"v":43709,"d":"4370900.00%"}},{"$f":"DATEVALUE(\"1-LIS\"&_GODINA)","v":{"v":43739,"d":"4373900.00%"}},{"$f":"DATEVALUE(\"1-STU\"&_GODINA)","v":{"v":43770,"d":"4377000.00%"}},{"$f":"DATEVALUE(\"1-PRO\"&_GODINA)","v":{"v":43800,"d":"4380000.00%"}}]
[{"$nulls":3},{"$f":"EOMONTH(D3,0)","v":{"v":43496,"d":"4349600.00%"}},{"$f":"EOMONTH(E3,0)","v":{"v":43524,"d":"4352400.00%"}},{"$f":"EOMONTH(F3,0)","v":{"v":43555,"d":"4355500.00%"}},{"$f":"EOMONTH(G3,0)","v":{"v":43585,"d":"4358500.00%"}},{"$f":"EOMONTH(H3,0)","v":{"v":43616,"d":"4361600.00%"}},{"$f":"EOMONTH(I3,0)","v":{"v":43646,"d":"4364600.00%"}},{"v":43677,"d":"4367700.00%"},{"v":43708,"d":"4370800.00%"},{"v":43738,"d":"4373800.00%"},{"v":43769,"d":"4376900.00%"},{"v":43799,"d":"4379900.00%"},{"v":43830,"d":"4383000.00%"}]
[null,"Šifra glavne knjige","Naziv računa","Siječanj","Veljača","Ožujak","Travanj","Svibanj","Lipanj","Srpanj","Kolovoz","Rujan","Listopad","Studeni","Prosinac","Zbroj"," "]
[null,1000,"Oglašavanje",{"$f":"SUMIFS(TroškoviPoStavkama[Iznos čeka],TroškoviPoStavkama[Šifra glavne knjige],SažetakMjesečnihTroškova[[#This Row],[Šifra glavne knjige]],TroškoviPoStavkama[Datum izdavanja računa],\">=\"&D$3,TroškoviPoStavkama[Datum izdavanja računa],\"<=\"&D$4)+SUMIFS(Ostalo[Iznos čeka],Ostalo[Šifra glavne knjige],SažetakMjesečnihTroškova[[#This Row],[Šifra glavne knjige]],Ostalo[Pokrenut je zahtjev za provjeru datuma],\">=\"&DATEVALUE(\" 1 \"&SažetakMjesečnihTroškova[[#Headers],[Siječanj]]&_GODINA),Ostalo[Pokrenut je zahtjev za provjeru datuma],\"<=\"&D$4)","v":{"v":0,"d":"0.00 kn"}},{"$f":"SUMIFS(TroškoviPoStavkama[Iznos čeka],TroškoviPoStavkama[Šifra glavne knjige],SažetakMjesečnihTroškova[[#This Row],[Šifra glavne knjige]],TroškoviPoStavkama[Datum izdavanja računa],\">=\"&E$3,TroškoviPoStavkama[Datum izdavanja računa],\"<=\"&E$4)+SUMIFS(Ostalo[Iznos čeka],Ostalo[Šifra glavne knjige],SažetakMjesečnihTroškova[[#This Row],[Šifra glavne knjige]],Ostalo[Pokrenut je zahtjev za provjeru datuma],\">=\"&DATEVALUE(\" 1 \"&SažetakMjesečnihTroškova[[#Headers],[Veljača]]&_GODINA),Ostalo[Pokrenut je zahtjev za provjeru datuma],\"<=\"&E$4)","v":{"v":0,"d":"0.00 kn"}},{"$f":"SUMIFS(TroškoviPoStavkama[Iznos čeka],TroškoviPoStavkama[Šifra glavne knjige],SažetakMjesečnihTroškova[[#This Row],[Šifra glavne knjige]],TroškoviPoStavkama[Datum izdavanja računa],\">=\"&F$3,TroškoviPoStavkama[Datum izdavanja računa],\"<=\"&F$4)+SUMIFS(Ostalo[Iznos čeka],Ostalo[Šifra glavne knjige],SažetakMjesečnihTroškova[[#This Row],[Šifra glavne knjige]],Ostalo[Pokrenut je zahtjev za provjeru datuma],\">=\"&DATEVALUE(\" 1 \"&SažetakMjesečnihTroškova[[#Headers],[Ožujak]]&_GODINA),Ostalo[Pokrenut je zahtjev za provjeru datuma],\"<=\"&F$4)","v":{"v":0,"d":"0.00 kn"}},{"$f":"SUMIFS(TroškoviPoStavkama[Iznos čeka],TroškoviPoStavkama[Šifra glavne knjige],SažetakMjesečnihTroškova[[#This Row],[Šifra glavne knjige]],TroškoviPoStavkama[Datum izdavanja računa],\">=\"&G$3,TroškoviPoStavkama[Datum izdavanja računa],\"<=\"&G$4)+SUMIFS(Ostalo[Iznos čeka],Ostalo[Šifra glavne knjige],SažetakMjesečnihTroškova[[#This Row],[Šifra glavne knjige]],Ostalo[Pokrenut je zahtjev za provjeru datuma],\">=\"&DATEVALUE(\" 1 \"&SažetakMjesečnihTroškova[[#Headers],[Travanj]]&_GODINA),Ostalo[Pokrenut je zahtjev za provjeru datuma],\"<=\"&G$4)","v":{"v":0,"d":"0.00 kn"}},{"$f":"SUMIFS(TroškoviPoStavkama[Iznos čeka],TroškoviPoStavkama[Šifra glavne knjige],SažetakMjesečnihTroškova[[#This Row],[Šifra glavne knjige]],TroškoviPoStavkama[Datum izdavanja računa],\">=\"&H$3,TroškoviPoStavkama[Datum izdavanja računa],\"<=\"&H$4)+SUMIFS(Ostalo[Iznos čeka],Ostalo[Šifra glavne knjige],SažetakMjesečnihTroškova[[#This Row],[Šifra glavne knjige]],Ostalo[Pokrenut je zahtjev za provjeru datuma],\">=\"&DATEVALUE(\" 1 \"&SažetakMjesečnihTroškova[[#Headers],[Svibanj]]&_GODINA),Ostalo[Pokrenut je zahtjev za provjeru datuma],\"<=\"&H$4)","v":{"v":0,"d":"0.00 kn"}},{"$f":"SUMIFS(TroškoviPoStavkama[Iznos čeka],TroškoviPoStavkama[Šifra glavne knjige],SažetakMjesečnihTroškova[[#This Row],[Šifra glavne knjige]],TroškoviPoStavkama[Datum izdavanja računa],\">=\"&I$3,TroškoviPoStavkama[Datum izdavanja računa],\"<=\"&I$4)+SUMIFS(Ostalo[Iznos čeka],Ostalo[Šifra glavne knjige],SažetakMjesečnihTroškova[[#This Row],[Šifra glavne knjige]],Ostalo[Pokrenut je zahtjev za provjeru datuma],\">=\"&DATEVALUE(\" 1 \"&SažetakMjesečnihTroškova[[#Headers],[Lipanj]]&_GODINA),Ostalo[Pokrenut je zahtjev za provjeru datuma],\"<=\"&I$4)","v":{"v":0,"d":"0.00 kn"}},{"$f":"SUMIFS(TroškoviPoStavkama[Iznos čeka],TroškoviPoStavkama[Šifra glavne knjige],SažetakMjesečnihTroškova[[#This Row],[Šifra glavne knjige]],TroškoviPoStavkama[Datum izdavanja računa],\">=\"&J$3,TroškoviPoStavkama[Datum izdavanja računa],\"<=\"&J$4)+SUMIFS(Ostalo[Iznos čeka],Ostalo[Šifra glavne knjige],SažetakMjesečnihTroškova[[#This Row],[Šifra glavne knjige]],Ostalo[Pokrenut je zahtjev za provjeru datuma],\">=\"&DATEVALUE(\" 1 \"&SažetakMjesečnihTroškova[[#Headers],[Srpanj]]&_GODINA),Ostalo[Pokrenut je zahtjev za provjeru datuma],\"<=\"&J$4)","v":{"v":0,"d":"0.00 kn"}},{"$f":"SUMIFS(TroškoviPoStavkama[Iznos čeka],TroškoviPoStavkama[Šifra glavne knjige],SažetakMjesečnihTroškova[[#This Row],[Šifra glavne knjige]],TroškoviPoStavkama[Datum izdavanja računa],\">=\"&K$3,TroškoviPoStavkama[Datum izdavanja računa],\"<=\"&K$4)+SUMIFS(Ostalo[Iznos čeka],Ostalo[Šifra glavne knjige],SažetakMjesečnihTroškova[[#This Row],[Šifra glavne knjige]],Ostalo[Pokrenut je zahtjev za provjeru datuma],\">=\"&DATEVALUE(\" 1 \"&SažetakMjesečnihTroškova[[#Headers],[Kolovoz]]&_GODINA),Ostalo[Pokrenut je zahtjev za provjeru datuma],\"<=\"&K$4)","v":{"v":0,"d":"0.00 kn"}},{"$f":"SUMIFS(TroškoviPoStavkama[Iznos čeka],TroškoviPoStavkama[Šifra glavne knjige],SažetakMjesečnihTroškova[[#This Row],[Šifra glavne knjige]],TroškoviPoStavkama[Datum izdavanja računa],\">=\"&L$3,TroškoviPoStavkama[Datum izdavanja računa],\"<=\"&L$4)+SUMIFS(Ostalo[Iznos čeka],Ostalo[Šifra glavne knjige],SažetakMjesečnihTroškova[[#This Row],[Šifra glavne knjige]],Ostalo[Pokrenut je zahtjev za provjeru datuma],\">=\"&DATEVALUE(\" 1 \"&SažetakMjesečnihTroškova[[#Headers],[Rujan]]&_GODINA),Ostalo[Pokrenut je zahtjev za provjeru datuma],\"<=\"&L$4)","v":{"v":0,"d":"0.00 kn"}},{"$f":"SUMIFS(TroškoviPoStavkama[Iznos čeka],TroškoviPoStavkama[Šifra glavne knjige],SažetakMjesečnihTroškova[[#This Row],[Šifra glavne knjige]],TroškoviPoStavkama[Datum izdavanja računa],\">=\"&M$3,TroškoviPoStavkama[Datum izdavanja računa],\"<=\"&M$4)+SUMIFS(Ostalo[Iznos čeka],Ostalo[Šifra glavne knjige],SažetakMjesečnihTroškova[[#This Row],[Šifra glavne knjige]],Ostalo[Pokrenut je zahtjev za provjeru datuma],\">=\"&DATEVALUE(\" 1 \"&SažetakMjesečnihTroškova[[#Headers],[Listopad]]&_GODINA),Ostalo[Pokrenut je zahtjev za provjeru datuma],\"<=\"&M$4)","v":{"v":0,"d":"0.00 kn"}},{"$f":"SUMIFS(TroškoviPoStavkama[Iznos čeka],TroškoviPoStavkama[Šifra glavne knjige],SažetakMjesečnihTroškova[[#This Row],[Šifra glavne knjige]],TroškoviPoStavkama[Datum izdavanja računa],\">=\"&N$3,TroškoviPoStavkama[Datum izdavanja računa],\"<=\"&N$4)+SUMIFS(Ostalo[Iznos čeka],Ostalo[Šifra glavne knjige],SažetakMjesečnihTroškova[[#This Row],[Šifra glavne knjige]],Ostalo[Pokrenut je zahtjev za provjeru datuma],\">=\"&DATEVALUE(\" 1 \"&SažetakMjesečnihTroškova[[#Headers],[Studeni]]&_GODINA),Ostalo[Pokrenut je zahtjev za provjeru datuma],\"<=\"&N$4)","v":{"v":0,"d":"0.00 kn"}},{"$f":"SUMIFS(TroškoviPoStavkama[Iznos čeka],TroškoviPoStavkama[Šifra glavne knjige],SažetakMjesečnihTroškova[[#This Row],[Šifra glavne knjige]],TroškoviPoStavkama[Datum izdavanja računa],\">=\"&O$3,TroškoviPoStavkama[Datum izdavanja računa],\"<=\"&O$4)+SUMIFS(Ostalo[Iznos čeka],Ostalo[Šifra glavne knjige],SažetakMjesečnihTroškova[[#This Row],[Šifra glavne knjige]],Ostalo[Pokrenut je zahtjev za provjeru datuma],\">=\"&DATEVALUE(\" 1 \"&SažetakMjesečnihTroškova[[#Headers],[Prosinac]]&_GODINA),Ostalo[Pokrenut je zahtjev za provjeru datuma],\"<=\"&O$4)","v":{"v":0,"d":"0.00 kn"}},{"$f":"SUM(SažetakMjesečnihTroškova[[#This Row],[Siječanj]:[Prosinac]])","v":{"v":0,"d":"0.00 kn"}}]
[null,2000,"Uredska oprema",{"$f":"SUMIFS(TroškoviPoStavkama[Iznos čeka],TroškoviPoStavkama[Šifra glavne knjige],SažetakMjesečnihTroškova[[#This Row],[Šifra glavne knjige]],TroškoviPoStavkama[Datum izdavanja računa],\">=\"&D$3,TroškoviPoStavkama[Datum izdavanja računa],\"<=\"&D$4)+SUMIFS(Ostalo[Iznos čeka],Ostalo[Šifra glavne knjige],SažetakMjesečnihTroškova[[#This Row],[Šifra glavne knjige]],Ostalo[Pokrenut je zahtjev za provjeru datuma],\">=\"&DATEVALUE(\" 1 \"&SažetakMjesečnihTroškova[[#Headers],[Siječanj]]&_GODINA),Ostalo[Pokrenut je zahtjev za provjeru datuma],\"<=\"&D$4)","v":{"v":0,"d":"0.00 kn"}},{"$f":"SUMIFS(TroškoviPoStavkama[Iznos čeka],TroškoviPoStavkama[Šifra glavne knjige],SažetakMjesečnihTroškova[[#This Row],[Šifra glavne knjige]],TroškoviPoStavkama[Datum izdavanja računa],\">=\"&E$3,TroškoviPoStavkama[Datum izdavanja računa],\"<=\"&E$4)+SUMIFS(Ostalo[Iznos čeka],Ostalo[Šifra glavne knjige],SažetakMjesečnihTroškova[[#This Row],[Šifra glavne knjige]],Ostalo[Pokrenut je zahtjev za provjeru datuma],\">=\"&DATEVALUE(\" 1 \"&SažetakMjesečnihTroškova[[#Headers],[Veljača]]&_GODINA),Ostalo[Pokrenut je zahtjev za provjeru datuma],\"<=\"&E$4)","v":{"v":0,"d":"0.00 kn"}},{"$f":"SUMIFS(TroškoviPoStavkama[Iznos čeka],TroškoviPoStavkama[Šifra glavne knjige],SažetakMjesečnihTroškova[[#This Row],[Šifra glavne knjige]],TroškoviPoStavkama[Datum izdavanja računa],\">=\"&F$3,TroškoviPoStavkama[Datum izdavanja računa],\"<=\"&F$4)+SUMIFS(Ostalo[Iznos čeka],Ostalo[Šifra glavne knjige],SažetakMjesečnihTroškova[[#This Row],[Šifra glavne knjige]],Ostalo[Pokrenut je zahtjev za provjeru datuma],\">=\"&DATEVALUE(\" 1 \"&SažetakMjesečnihTroškova[[#Headers],[Ožujak]]&_GODINA),Ostalo[Pokrenut je zahtjev za provjeru datuma],\"<=\"&F$4)","v":{"v":0,"d":"0.00 kn"}},{"$f":"SUMIFS(TroškoviPoStavkama[Iznos čeka],TroškoviPoStavkama[Šifra glavne knjige],SažetakMjesečnihTroškova[[#This Row],[Šifra glavne knjige]],TroškoviPoStavkama[Datum izdavanja računa],\">=\"&G$3,TroškoviPoStavkama[Datum izdavanja računa],\"<=\"&G$4)+SUMIFS(Ostalo[Iznos čeka],Ostalo[Šifra glavne knjige],SažetakMjesečnihTroškova[[#This Row],[Šifra glavne knjige]],Ostalo[Pokrenut je zahtjev za provjeru datuma],\">=\"&DATEVALUE(\" 1 \"&SažetakMjesečnihTroškova[[#Headers],[Travanj]]&_GODINA),Ostalo[Pokrenut je zahtjev za provjeru datuma],\"<=\"&G$4)","v":{"v":0,"d":"0.00 kn"}},{"$f":"SUMIFS(TroškoviPoStavkama[Iznos čeka],TroškoviPoStavkama[Šifra glavne knjige],SažetakMjesečnihTroškova[[#This Row],[Šifra glavne knjige]],TroškoviPoStavkama[Datum izdavanja računa],\">=\"&H$3,TroškoviPoStavkama[Datum izdavanja računa],\"<=\"&H$4)+SUMIFS(Ostalo[Iznos čeka],Ostalo[Šifra glavne knjige],SažetakMjesečnihTroškova[[#This Row],[Šifra glavne knjige]],Ostalo[Pokrenut je zahtjev za provjeru datuma],\">=\"&DATEVALUE(\" 1 \"&SažetakMjesečnihTroškova[[#Headers],[Svibanj]]&_GODINA),Ostalo[Pokrenut je zahtjev za provjeru datuma],\"<=\"&H$4)","v":{"v":0,"d":"0.00 kn"}},{"$f":"SUMIFS(TroškoviPoStavkama[Iznos čeka],TroškoviPoStavkama[Šifra glavne knjige],SažetakMjesečnihTroškova[[#This Row],[Šifra glavne knjige]],TroškoviPoStavkama[Datum izdavanja računa],\">=\"&I$3,TroškoviPoStavkama[Datum izdavanja računa],\"<=\"&I$4)+SUMIFS(Ostalo[Iznos čeka],Ostalo[Šifra glavne knjige],SažetakMjesečnihTroškova[[#This Row],[Šifra glavne knjige]],Ostalo[Pokrenut je zahtjev za provjeru datuma],\">=\"&DATEVALUE(\" 1 \"&SažetakMjesečnihTroškova[[#Headers],[Lipanj]]&_GODINA),Ostalo[Pokrenut je zahtjev za provjeru datuma],\"<=\"&I$4)","v":{"v":0,"d":"0.00 kn"}},{"$f":"SUMIFS(TroškoviPoStavkama[Iznos čeka],TroškoviPoStavkama[Šifra glavne knjige],SažetakMjesečnihTroškova[[#This Row],[Šifra glavne knjige]],TroškoviPoStavkama[Datum izdavanja računa],\">=\"&J$3,TroškoviPoStavkama[Datum izdavanja računa],\"<=\"&J$4)+SUMIFS(Ostalo[Iznos čeka],Ostalo[Šifra glavne knjige],SažetakMjesečnihTroškova[[#This Row],[Šifra glavne knjige]],Ostalo[Pokrenut je zahtjev za provjeru datuma],\">=\"&DATEVALUE(\" 1 \"&SažetakMjesečnihTroškova[[#Headers],[Srpanj]]&_GODINA),Ostalo[Pokrenut je zahtjev za provjeru datuma],\"<=\"&J$4)","v":{"v":0,"d":"0.00 kn"}},{"$f":"SUMIFS(TroškoviPoStavkama[Iznos čeka],TroškoviPoStavkama[Šifra glavne knjige],SažetakMjesečnihTroškova[[#This Row],[Šifra glavne knjige]],TroškoviPoStavkama[Datum izdavanja računa],\">=\"&K$3,TroškoviPoStavkama[Datum izdavanja računa],\"<=\"&K$4)+SUMIFS(Ostalo[Iznos čeka],Ostalo[Šifra glavne knjige],SažetakMjesečnihTroškova[[#This Row],[Šifra glavne knjige]],Ostalo[Pokrenut je zahtjev za provjeru datuma],\">=\"&DATEVALUE(\" 1 \"&SažetakMjesečnihTroškova[[#Headers],[Kolovoz]]&_GODINA),Ostalo[Pokrenut je zahtjev za provjeru datuma],\"<=\"&K$4)","v":{"v":0,"d":"0.00 kn"}},{"$f":"SUMIFS(TroškoviPoStavkama[Iznos čeka],TroškoviPoStavkama[Šifra glavne knjige],SažetakMjesečnihTroškova[[#This Row],[Šifra glavne knjige]],TroškoviPoStavkama[Datum izdavanja računa],\">=\"&L$3,TroškoviPoStavkama[Datum izdavanja računa],\"<=\"&L$4)+SUMIFS(Ostalo[Iznos čeka],Ostalo[Šifra glavne knjige],SažetakMjesečnihTroškova[[#This Row],[Šifra glavne knjige]],Ostalo[Pokrenut je zahtjev za provjeru datuma],\">=\"&DATEVALUE(\" 1 \"&SažetakMjesečnihTroškova[[#Headers],[Rujan]]&_GODINA),Ostalo[Pokrenut je zahtjev za provjeru datuma],\"<=\"&L$4)","v":{"v":0,"d":"0.00 kn"}},{"$f":"SUMIFS(TroškoviPoStavkama[Iznos čeka],TroškoviPoStavkama[Šifra glavne knjige],SažetakMjesečnihTroškova[[#This Row],[Šifra glavne knjige]],TroškoviPoStavkama[Datum izdavanja računa],\">=\"&M$3,TroškoviPoStavkama[Datum izdavanja računa],\"<=\"&M$4)+SUMIFS(Ostalo[Iznos čeka],Ostalo[Šifra glavne knjige],SažetakMjesečnihTroškova[[#This Row],[Šifra glavne knjige]],Ostalo[Pokrenut je zahtjev za provjeru datuma],\">=\"&DATEVALUE(\" 1 \"&SažetakMjesečnihTroškova[[#Headers],[Listopad]]&_GODINA),Ostalo[Pokrenut je zahtjev za provjeru datuma],\"<=\"&M$4)","v":{"v":0,"d":"0.00 kn"}},{"$f":"SUMIFS(TroškoviPoStavkama[Iznos čeka],TroškoviPoStavkama[Šifra glavne knjige],SažetakMjesečnihTroškova[[#This Row],[Šifra glavne knjige]],TroškoviPoStavkama[Datum izdavanja računa],\">=\"&N$3,TroškoviPoStavkama[Datum izdavanja računa],\"<=\"&N$4)+SUMIFS(Ostalo[Iznos čeka],Ostalo[Šifra glavne knjige],SažetakMjesečnihTroškova[[#This Row],[Šifra glavne knjige]],Ostalo[Pokrenut je zahtjev za provjeru datuma],\">=\"&DATEVALUE(\" 1 \"&SažetakMjesečnihTroškova[[#Headers],[Studeni]]&_GODINA),Ostalo[Pokrenut je zahtjev za provjeru datuma],\"<=\"&N$4)","v":{"v":0,"d":"0.00 kn"}},{"$f":"SUMIFS(TroškoviPoStavkama[Iznos čeka],TroškoviPoStavkama[Šifra glavne knjige],SažetakMjesečnihTroškova[[#This Row],[Šifra glavne knjige]],TroškoviPoStavkama[Datum izdavanja računa],\">=\"&O$3,TroškoviPoStavkama[Datum izdavanja računa],\"<=\"&O$4)+SUMIFS(Ostalo[Iznos čeka],Ostalo[Šifra glavne knjige],SažetakMjesečnihTroškova[[#This Row],[Šifra glavne knjige]],Ostalo[Pokrenut je zahtjev za provjeru datuma],\">=\"&DATEVALUE(\" 1 \"&SažetakMjesečnihTroškova[[#Headers],[Prosinac]]&_GODINA),Ostalo[Pokrenut je zahtjev za provjeru datuma],\"<=\"&O$4)","v":{"v":0,"d":"0.00 kn"}},{"$f":"SUM(SažetakMjesečnihTroškova[[#This Row],[Siječanj]:[Prosinac]])","v":{"v":0,"d":"0.00 kn"}}]
[null,3000,"Pisači",{"$f":"SUMIFS(TroškoviPoStavkama[Iznos čeka],TroškoviPoStavkama[Šifra glavne knjige],SažetakMjesečnihTroškova[[#This Row],[Šifra glavne knjige]],TroškoviPoStavkama[Datum izdavanja računa],\">=\"&D$3,TroškoviPoStavkama[Datum izdavanja računa],\"<=\"&D$4)+SUMIFS(Ostalo[Iznos čeka],Ostalo[Šifra glavne knjige],SažetakMjesečnihTroškova[[#This Row],[Šifra glavne knjige]],Ostalo[Pokrenut je zahtjev za provjeru datuma],\">=\"&DATEVALUE(\" 1 \"&SažetakMjesečnihTroškova[[#Headers],[Siječanj]]&_GODINA),Ostalo[Pokrenut je zahtjev za provjeru datuma],\"<=\"&D$4)","v":{"v":0,"d":"0.00 kn"}},{"$f":"SUMIFS(TroškoviPoStavkama[Iznos čeka],TroškoviPoStavkama[Šifra glavne knjige],SažetakMjesečnihTroškova[[#This Row],[Šifra glavne knjige]],TroškoviPoStavkama[Datum izdavanja računa],\">=\"&E$3,TroškoviPoStavkama[Datum izdavanja računa],\"<=\"&E$4)+SUMIFS(Ostalo[Iznos čeka],Ostalo[Šifra glavne knjige],SažetakMjesečnihTroškova[[#This Row],[Šifra glavne knjige]],Ostalo[Pokrenut je zahtjev za provjeru datuma],\">=\"&DATEVALUE(\" 1 \"&SažetakMjesečnihTroškova[[#Headers],[Veljača]]&_GODINA),Ostalo[Pokrenut je zahtjev za provjeru datuma],\"<=\"&E$4)","v":{"v":0,"d":"0.00 kn"}},{"$f":"SUMIFS(TroškoviPoStavkama[Iznos čeka],TroškoviPoStavkama[Šifra glavne knjige],SažetakMjesečnihTroškova[[#This Row],[Šifra glavne knjige]],TroškoviPoStavkama[Datum izdavanja računa],\">=\"&F$3,TroškoviPoStavkama[Datum izdavanja računa],\"<=\"&F$4)+SUMIFS(Ostalo[Iznos čeka],Ostalo[Šifra glavne knjige],SažetakMjesečnihTroškova[[#This Row],[Šifra glavne knjige]],Ostalo[Pokrenut je zahtjev za provjeru datuma],\">=\"&DATEVALUE(\" 1 \"&SažetakMjesečnihTroškova[[#Headers],[Ožujak]]&_GODINA),Ostalo[Pokrenut je zahtjev za provjeru datuma],\"<=\"&F$4)","v":{"v":0,"d":"0.00 kn"}},{"$f":"SUMIFS(TroškoviPoStavkama[Iznos čeka],TroškoviPoStavkama[Šifra glavne knjige],SažetakMjesečnihTroškova[[#This Row],[Šifra glavne knjige]],TroškoviPoStavkama[Datum izdavanja računa],\">=\"&G$3,TroškoviPoStavkama[Datum izdavanja računa],\"<=\"&G$4)+SUMIFS(Ostalo[Iznos čeka],Ostalo[Šifra glavne knjige],SažetakMjesečnihTroškova[[#This Row],[Šifra glavne knjige]],Ostalo[Pokrenut je zahtjev za provjeru datuma],\">=\"&DATEVALUE(\" 1 \"&SažetakMjesečnihTroškova[[#Headers],[Travanj]]&_GODINA),Ostalo[Pokrenut je zahtjev za provjeru datuma],\"<=\"&G$4)","v":{"v":0,"d":"0.00 kn"}},{"$f":"SUMIFS(TroškoviPoStavkama[Iznos čeka],TroškoviPoStavkama[Šifra glavne knjige],SažetakMjesečnihTroškova[[#This Row],[Šifra glavne knjige]],TroškoviPoStavkama[Datum izdavanja računa],\">=\"&H$3,TroškoviPoStavkama[Datum izdavanja računa],\"<=\"&H$4)+SUMIFS(Ostalo[Iznos čeka],Ostalo[Šifra glavne knjige],SažetakMjesečnihTroškova[[#This Row],[Šifra glavne knjige]],Ostalo[Pokrenut je zahtjev za provjeru datuma],\">=\"&DATEVALUE(\" 1 \"&SažetakMjesečnihTroškova[[#Headers],[Svibanj]]&_GODINA),Ostalo[Pokrenut je zahtjev za provjeru datuma],\"<=\"&H$4)","v":{"v":0,"d":"0.00 kn"}},{"$f":"SUMIFS(TroškoviPoStavkama[Iznos čeka],TroškoviPoStavkama[Šifra glavne knjige],SažetakMjesečnihTroškova[[#This Row],[Šifra glavne knjige]],TroškoviPoStavkama[Datum izdavanja računa],\">=\"&I$3,TroškoviPoStavkama[Datum izdavanja računa],\"<=\"&I$4)+SUMIFS(Ostalo[Iznos čeka],Ostalo[Šifra glavne knjige],SažetakMjesečnihTroškova[[#This Row],[Šifra glavne knjige]],Ostalo[Pokrenut je zahtjev za provjeru datuma],\">=\"&DATEVALUE(\" 1 \"&SažetakMjesečnihTroškova[[#Headers],[Lipanj]]&_GODINA),Ostalo[Pokrenut je zahtjev za provjeru datuma],\"<=\"&I$4)","v":{"v":0,"d":"0.00 kn"}},{"$f":"SUMIFS(TroškoviPoStavkama[Iznos čeka],TroškoviPoStavkama[Šifra glavne knjige],SažetakMjesečnihTroškova[[#This Row],[Šifra glavne knjige]],TroškoviPoStavkama[Datum izdavanja računa],\">=\"&J$3,TroškoviPoStavkama[Datum izdavanja računa],\"<=\"&J$4)+SUMIFS(Ostalo[Iznos čeka],Ostalo[Šifra glavne knjige],SažetakMjesečnihTroškova[[#This Row],[Šifra glavne knjige]],Ostalo[Pokrenut je zahtjev za provjeru datuma],\">=\"&DATEVALUE(\" 1 \"&SažetakMjesečnihTroškova[[#Headers],[Srpanj]]&_GODINA),Ostalo[Pokrenut je zahtjev za provjeru datuma],\"<=\"&J$4)","v":{"v":0,"d":"0.00 kn"}},{"$f":"SUMIFS(TroškoviPoStavkama[Iznos čeka],TroškoviPoStavkama[Šifra glavne knjige],SažetakMjesečnihTroškova[[#This Row],[Šifra glavne knjige]],TroškoviPoStavkama[Datum izdavanja računa],\">=\"&K$3,TroškoviPoStavkama[Datum izdavanja računa],\"<=\"&K$4)+SUMIFS(Ostalo[Iznos čeka],Ostalo[Šifra glavne knjige],SažetakMjesečnihTroškova[[#This Row],[Šifra glavne knjige]],Ostalo[Pokrenut je zahtjev za provjeru datuma],\">=\"&DATEVALUE(\" 1 \"&SažetakMjesečnihTroškova[[#Headers],[Kolovoz]]&_GODINA),Ostalo[Pokrenut je zahtjev za provjeru datuma],\"<=\"&K$4)","v":{"v":0,"d":"0.00 kn"}},{"$f":"SUMIFS(TroškoviPoStavkama[Iznos čeka],TroškoviPoStavkama[Šifra glavne knjige],SažetakMjesečnihTroškova[[#This Row],[Šifra glavne knjige]],TroškoviPoStavkama[Datum izdavanja računa],\">=\"&L$3,TroškoviPoStavkama[Datum izdavanja računa],\"<=\"&L$4)+SUMIFS(Ostalo[Iznos čeka],Ostalo[Šifra glavne knjige],SažetakMjesečnihTroškova[[#This Row],[Šifra glavne knjige]],Ostalo[Pokrenut je zahtjev za provjeru datuma],\">=\"&DATEVALUE(\" 1 \"&SažetakMjesečnihTroškova[[#Headers],[Rujan]]&_GODINA),Ostalo[Pokrenut je zahtjev za provjeru datuma],\"<=\"&L$4)","v":{"v":0,"d":"0.00 kn"}},{"$f":"SUMIFS(TroškoviPoStavkama[Iznos čeka],TroškoviPoStavkama[Šifra glavne knjige],SažetakMjesečnihTroškova[[#This Row],[Šifra glavne knjige]],TroškoviPoStavkama[Datum izdavanja računa],\">=\"&M$3,TroškoviPoStavkama[Datum izdavanja računa],\"<=\"&M$4)+SUMIFS(Ostalo[Iznos čeka],Ostalo[Šifra glavne knjige],SažetakMjesečnihTroškova[[#This Row],[Šifra glavne knjige]],Ostalo[Pokrenut je zahtjev za provjeru datuma],\">=\"&DATEVALUE(\" 1 \"&SažetakMjesečnihTroškova[[#Headers],[Listopad]]&_GODINA),Ostalo[Pokrenut je zahtjev za provjeru datuma],\"<=\"&M$4)","v":{"v":0,"d":"0.00 kn"}},{"$f":"SUMIFS(TroškoviPoStavkama[Iznos čeka],TroškoviPoStavkama[Šifra glavne knjige],SažetakMjesečnihTroškova[[#This Row],[Šifra glavne knjige]],TroškoviPoStavkama[Datum izdavanja računa],\">=\"&N$3,TroškoviPoStavkama[Datum izdavanja računa],\"<=\"&N$4)+SUMIFS(Ostalo[Iznos čeka],Ostalo[Šifra glavne knjige],SažetakMjesečnihTroškova[[#This Row],[Šifra glavne knjige]],Ostalo[Pokrenut je zahtjev za provjeru datuma],\">=\"&DATEVALUE(\" 1 \"&SažetakMjesečnihTroškova[[#Headers],[Studeni]]&_GODINA),Ostalo[Pokrenut je zahtjev za provjeru datuma],\"<=\"&N$4)","v":{"v":0,"d":"0.00 kn"}},{"$f":"SUMIFS(TroškoviPoStavkama[Iznos čeka],TroškoviPoStavkama[Šifra glavne knjige],SažetakMjesečnihTroškova[[#This Row],[Šifra glavne knjige]],TroškoviPoStavkama[Datum izdavanja računa],\">=\"&O$3,TroškoviPoStavkama[Datum izdavanja računa],\"<=\"&O$4)+SUMIFS(Ostalo[Iznos čeka],Ostalo[Šifra glavne knjige],SažetakMjesečnihTroškova[[#This Row],[Šifra glavne knjige]],Ostalo[Pokrenut je zahtjev za provjeru datuma],\">=\"&DATEVALUE(\" 1 \"&SažetakMjesečnihTroškova[[#Headers],[Prosinac]]&_GODINA),Ostalo[Pokrenut je zahtjev za provjeru datuma],\"<=\"&O$4)","v":{"v":0,"d":"0.00 kn"}},{"$f":"SUM(SažetakMjesečnihTroškova[[#This Row],[Siječanj]:[Prosinac]])","v":{"v":0,"d":"0.00 kn"}}]
[null,4000,"Troškovi poslužitelja",{"$f":"SUMIFS(TroškoviPoStavkama[Iznos čeka],TroškoviPoStavkama[Šifra glavne knjige],SažetakMjesečnihTroškova[[#This Row],[Šifra glavne knjige]],TroškoviPoStavkama[Datum izdavanja računa],\">=\"&D$3,TroškoviPoStavkama[Datum izdavanja računa],\"<=\"&D$4)+SUMIFS(Ostalo[Iznos čeka],Ostalo[Šifra glavne knjige],SažetakMjesečnihTroškova[[#This Row],[Šifra glavne knjige]],Ostalo[Pokrenut je zahtjev za provjeru datuma],\">=\"&DATEVALUE(\" 1 \"&SažetakMjesečnihTroškova[[#Headers],[Siječanj]]&_GODINA),Ostalo[Pokrenut je zahtjev za provjeru datuma],\"<=\"&D$4)","v":{"v":0,"d":"0.00 kn"}},{"$f":"SUMIFS(TroškoviPoStavkama[Iznos čeka],TroškoviPoStavkama[Šifra glavne knjige],SažetakMjesečnihTroškova[[#This Row],[Šifra glavne knjige]],TroškoviPoStavkama[Datum izdavanja računa],\">=\"&E$3,TroškoviPoStavkama[Datum izdavanja računa],\"<=\"&E$4)+SUMIFS(Ostalo[Iznos čeka],Ostalo[Šifra glavne knjige],SažetakMjesečnihTroškova[[#This Row],[Šifra glavne knjige]],Ostalo[Pokrenut je zahtjev za provjeru datuma],\">=\"&DATEVALUE(\" 1 \"&SažetakMjesečnihTroškova[[#Headers],[Veljača]]&_GODINA),Ostalo[Pokrenut je zahtjev za provjeru datuma],\"<=\"&E$4)","v":{"v":0,"d":"0.00 kn"}},{"$f":"SUMIFS(TroškoviPoStavkama[Iznos čeka],TroškoviPoStavkama[Šifra glavne knjige],SažetakMjesečnihTroškova[[#This Row],[Šifra glavne knjige]],TroškoviPoStavkama[Datum izdavanja računa],\">=\"&F$3,TroškoviPoStavkama[Datum izdavanja računa],\"<=\"&F$4)+SUMIFS(Ostalo[Iznos čeka],Ostalo[Šifra glavne knjige],SažetakMjesečnihTroškova[[#This Row],[Šifra glavne knjige]],Ostalo[Pokrenut je zahtjev za provjeru datuma],\">=\"&DATEVALUE(\" 1 \"&SažetakMjesečnihTroškova[[#Headers],[Ožujak]]&_GODINA),Ostalo[Pokrenut je zahtjev za provjeru datuma],\"<=\"&F$4)","v":{"v":0,"d":"0.00 kn"}},{"$f":"SUMIFS(TroškoviPoStavkama[Iznos čeka],TroškoviPoStavkama[Šifra glavne knjige],SažetakMjesečnihTroškova[[#This Row],[Šifra glavne knjige]],TroškoviPoStavkama[Datum izdavanja računa],\">=\"&G$3,TroškoviPoStavkama[Datum izdavanja računa],\"<=\"&G$4)+SUMIFS(Ostalo[Iznos čeka],Ostalo[Šifra glavne knjige],SažetakMjesečnihTroškova[[#This Row],[Šifra glavne knjige]],Ostalo[Pokrenut je zahtjev za provjeru datuma],\">=\"&DATEVALUE(\" 1 \"&SažetakMjesečnihTroškova[[#Headers],[Travanj]]&_GODINA),Ostalo[Pokrenut je zahtjev za provjeru datuma],\"<=\"&G$4)","v":{"v":0,"d":"0.00 kn"}},{"$f":"SUMIFS(TroškoviPoStavkama[Iznos čeka],TroškoviPoStavkama[Šifra glavne knjige],SažetakMjesečnihTroškova[[#This Row],[Šifra glavne knjige]],TroškoviPoStavkama[Datum izdavanja računa],\">=\"&H$3,TroškoviPoStavkama[Datum izdavanja računa],\"<=\"&H$4)+SUMIFS(Ostalo[Iznos čeka],Ostalo[Šifra glavne knjige],SažetakMjesečnihTroškova[[#This Row],[Šifra glavne knjige]],Ostalo[Pokrenut je zahtjev za provjeru datuma],\">=\"&DATEVALUE(\" 1 \"&SažetakMjesečnihTroškova[[#Headers],[Svibanj]]&_GODINA),Ostalo[Pokrenut je zahtjev za provjeru datuma],\"<=\"&H$4)","v":{"v":0,"d":"0.00 kn"}},{"$f":"SUMIFS(TroškoviPoStavkama[Iznos čeka],TroškoviPoStavkama[Šifra glavne knjige],SažetakMjesečnihTroškova[[#This Row],[Šifra glavne knjige]],TroškoviPoStavkama[Datum izdavanja računa],\">=\"&I$3,TroškoviPoStavkama[Datum izdavanja računa],\"<=\"&I$4)+SUMIFS(Ostalo[Iznos čeka],Ostalo[Šifra glavne knjige],SažetakMjesečnihTroškova[[#This Row],[Šifra glavne knjige]],Ostalo[Pokrenut je zahtjev za provjeru datuma],\">=\"&DATEVALUE(\" 1 \"&SažetakMjesečnihTroškova[[#Headers],[Lipanj]]&_GODINA),Ostalo[Pokrenut je zahtjev za provjeru datuma],\"<=\"&I$4)","v":{"v":0,"d":"0.00 kn"}},{"$f":"SUMIFS(TroškoviPoStavkama[Iznos čeka],TroškoviPoStavkama[Šifra glavne knjige],SažetakMjesečnihTroškova[[#This Row],[Šifra glavne knjige]],TroškoviPoStavkama[Datum izdavanja računa],\">=\"&J$3,TroškoviPoStavkama[Datum izdavanja računa],\"<=\"&J$4)+SUMIFS(Ostalo[Iznos čeka],Ostalo[Šifra glavne knjige],SažetakMjesečnihTroškova[[#This Row],[Šifra glavne knjige]],Ostalo[Pokrenut je zahtjev za provjeru datuma],\">=\"&DATEVALUE(\" 1 \"&SažetakMjesečnihTroškova[[#Headers],[Srpanj]]&_GODINA),Ostalo[Pokrenut je zahtjev za provjeru datuma],\"<=\"&J$4)","v":{"v":0,"d":"0.00 kn"}},{"$f":"SUMIFS(TroškoviPoStavkama[Iznos čeka],TroškoviPoStavkama[Šifra glavne knjige],SažetakMjesečnihTroškova[[#This Row],[Šifra glavne knjige]],TroškoviPoStavkama[Datum izdavanja računa],\">=\"&K$3,TroškoviPoStavkama[Datum izdavanja računa],\"<=\"&K$4)+SUMIFS(Ostalo[Iznos čeka],Ostalo[Šifra glavne knjige],SažetakMjesečnihTroškova[[#This Row],[Šifra glavne knjige]],Ostalo[Pokrenut je zahtjev za provjeru datuma],\">=\"&DATEVALUE(\" 1 \"&SažetakMjesečnihTroškova[[#Headers],[Kolovoz]]&_GODINA),Ostalo[Pokrenut je zahtjev za provjeru datuma],\"<=\"&K$4)","v":{"v":0,"d":"0.00 kn"}},{"$f":"SUMIFS(TroškoviPoStavkama[Iznos čeka],TroškoviPoStavkama[Šifra glavne knjige],SažetakMjesečnihTroškova[[#This Row],[Šifra glavne knjige]],TroškoviPoStavkama[Datum izdavanja računa],\">=\"&L$3,TroškoviPoStavkama[Datum izdavanja računa],\"<=\"&L$4)+SUMIFS(Ostalo[Iznos čeka],Ostalo[Šifra glavne knjige],SažetakMjesečnihTroškova[[#This Row],[Šifra glavne knjige]],Ostalo[Pokrenut je zahtjev za provjeru datuma],\">=\"&DATEVALUE(\" 1 \"&SažetakMjesečnihTroškova[[#Headers],[Rujan]]&_GODINA),Ostalo[Pokrenut je zahtjev za provjeru datuma],\"<=\"&L$4)","v":{"v":0,"d":"0.00 kn"}},{"$f":"SUMIFS(TroškoviPoStavkama[Iznos čeka],TroškoviPoStavkama[Šifra glavne knjige],SažetakMjesečnihTroškova[[#This Row],[Šifra glavne knjige]],TroškoviPoStavkama[Datum izdavanja računa],\">=\"&M$3,TroškoviPoStavkama[Datum izdavanja računa],\"<=\"&M$4)+SUMIFS(Ostalo[Iznos čeka],Ostalo[Šifra glavne knjige],SažetakMjesečnihTroškova[[#This Row],[Šifra glavne knjige]],Ostalo[Pokrenut je zahtjev za provjeru datuma],\">=\"&DATEVALUE(\" 1 \"&SažetakMjesečnihTroškova[[#Headers],[Listopad]]&_GODINA),Ostalo[Pokrenut je zahtjev za provjeru datuma],\"<=\"&M$4)","v":{"v":0,"d":"0.00 kn"}},{"$f":"SUMIFS(TroškoviPoStavkama[Iznos čeka],TroškoviPoStavkama[Šifra glavne knjige],SažetakMjesečnihTroškova[[#This Row],[Šifra glavne knjige]],TroškoviPoStavkama[Datum izdavanja računa],\">=\"&N$3,TroškoviPoStavkama[Datum izdavanja računa],\"<=\"&N$4)+SUMIFS(Ostalo[Iznos čeka],Ostalo[Šifra glavne knjige],SažetakMjesečnihTroškova[[#This Row],[Šifra glavne knjige]],Ostalo[Pokrenut je zahtjev za provjeru datuma],\">=\"&DATEVALUE(\" 1 \"&SažetakMjesečnihTroškova[[#Headers],[Studeni]]&_GODINA),Ostalo[Pokrenut je zahtjev za provjeru datuma],\"<=\"&N$4)","v":{"v":0,"d":"0.00 kn"}},{"$f":"SUMIFS(TroškoviPoStavkama[Iznos čeka],TroškoviPoStavkama[Šifra glavne knjige],SažetakMjesečnihTroškova[[#This Row],[Šifra glavne knjige]],TroškoviPoStavkama[Datum izdavanja računa],\">=\"&O$3,TroškoviPoStavkama[Datum izdavanja računa],\"<=\"&O$4)+SUMIFS(Ostalo[Iznos čeka],Ostalo[Šifra glavne knjige],SažetakMjesečnihTroškova[[#This Row],[Šifra glavne knjige]],Ostalo[Pokrenut je zahtjev za provjeru datuma],\">=\"&DATEVALUE(\" 1 \"&SažetakMjesečnihTroškova[[#Headers],[Prosinac]]&_GODINA),Ostalo[Pokrenut je zahtjev za provjeru datuma],\"<=\"&O$4)","v":{"v":0,"d":"0.00 kn"}},{"$f":"SUM(SažetakMjesečnihTroškova[[#This Row],[Siječanj]:[Prosinac]])","v":{"v":0,"d":"0.00 kn"}}]
[null,5000,"Potrepštine",{"$f":"SUMIFS(TroškoviPoStavkama[Iznos čeka],TroškoviPoStavkama[Šifra glavne knjige],SažetakMjesečnihTroškova[[#This Row],[Šifra glavne knjige]],TroškoviPoStavkama[Datum izdavanja računa],\">=\"&D$3,TroškoviPoStavkama[Datum izdavanja računa],\"<=\"&D$4)+SUMIFS(Ostalo[Iznos čeka],Ostalo[Šifra glavne knjige],SažetakMjesečnihTroškova[[#This Row],[Šifra glavne knjige]],Ostalo[Pokrenut je zahtjev za provjeru datuma],\">=\"&DATEVALUE(\" 1 \"&SažetakMjesečnihTroškova[[#Headers],[Siječanj]]&_GODINA),Ostalo[Pokrenut je zahtjev za provjeru datuma],\"<=\"&D$4)","v":{"v":0,"d":"0.00 kn"}},{"$f":"SUMIFS(TroškoviPoStavkama[Iznos čeka],TroškoviPoStavkama[Šifra glavne knjige],SažetakMjesečnihTroškova[[#This Row],[Šifra glavne knjige]],TroškoviPoStavkama[Datum izdavanja računa],\">=\"&E$3,TroškoviPoStavkama[Datum izdavanja računa],\"<=\"&E$4)+SUMIFS(Ostalo[Iznos čeka],Ostalo[Šifra glavne knjige],SažetakMjesečnihTroškova[[#This Row],[Šifra glavne knjige]],Ostalo[Pokrenut je zahtjev za provjeru datuma],\">=\"&DATEVALUE(\" 1 \"&SažetakMjesečnihTroškova[[#Headers],[Veljača]]&_GODINA),Ostalo[Pokrenut je zahtjev za provjeru datuma],\"<=\"&E$4)","v":{"v":0,"d":"0.00 kn"}},{"$f":"SUMIFS(TroškoviPoStavkama[Iznos čeka],TroškoviPoStavkama[Šifra glavne knjige],SažetakMjesečnihTroškova[[#This Row],[Šifra glavne knjige]],TroškoviPoStavkama[Datum izdavanja računa],\">=\"&F$3,TroškoviPoStavkama[Datum izdavanja računa],\"<=\"&F$4)+SUMIFS(Ostalo[Iznos čeka],Ostalo[Šifra glavne knjige],SažetakMjesečnihTroškova[[#This Row],[Šifra glavne knjige]],Ostalo[Pokrenut je zahtjev za provjeru datuma],\">=\"&DATEVALUE(\" 1 \"&SažetakMjesečnihTroškova[[#Headers],[Ožujak]]&_GODINA),Ostalo[Pokrenut je zahtjev za provjeru datuma],\"<=\"&F$4)","v":{"v":0,"d":"0.00 kn"}},{"$f":"SUMIFS(TroškoviPoStavkama[Iznos čeka],TroškoviPoStavkama[Šifra glavne knjige],SažetakMjesečnihTroškova[[#This Row],[Šifra glavne knjige]],TroškoviPoStavkama[Datum izdavanja računa],\">=\"&G$3,TroškoviPoStavkama[Datum izdavanja računa],\"<=\"&G$4)+SUMIFS(Ostalo[Iznos čeka],Ostalo[Šifra glavne knjige],SažetakMjesečnihTroškova[[#This Row],[Šifra glavne knjige]],Ostalo[Pokrenut je zahtjev za provjeru datuma],\">=\"&DATEVALUE(\" 1 \"&SažetakMjesečnihTroškova[[#Headers],[Travanj]]&_GODINA),Ostalo[Pokrenut je zahtjev za provjeru datuma],\"<=\"&G$4)","v":{"v":0,"d":"0.00 kn"}},{"$f":"SUMIFS(TroškoviPoStavkama[Iznos čeka],TroškoviPoStavkama[Šifra glavne knjige],SažetakMjesečnihTroškova[[#This Row],[Šifra glavne knjige]],TroškoviPoStavkama[Datum izdavanja računa],\">=\"&H$3,TroškoviPoStavkama[Datum izdavanja računa],\"<=\"&H$4)+SUMIFS(Ostalo[Iznos čeka],Ostalo[Šifra glavne knjige],SažetakMjesečnihTroškova[[#This Row],[Šifra glavne knjige]],Ostalo[Pokrenut je zahtjev za provjeru datuma],\">=\"&DATEVALUE(\" 1 \"&SažetakMjesečnihTroškova[[#Headers],[Svibanj]]&_GODINA),Ostalo[Pokrenut je zahtjev za provjeru datuma],\"<=\"&H$4)","v":{"v":0,"d":"0.00 kn"}},{"$f":"SUMIFS(TroškoviPoStavkama[Iznos čeka],TroškoviPoStavkama[Šifra glavne knjige],SažetakMjesečnihTroškova[[#This Row],[Šifra glavne knjige]],TroškoviPoStavkama[Datum izdavanja računa],\">=\"&I$3,TroškoviPoStavkama[Datum izdavanja računa],\"<=\"&I$4)+SUMIFS(Ostalo[Iznos čeka],Ostalo[Šifra glavne knjige],SažetakMjesečnihTroškova[[#This Row],[Šifra glavne knjige]],Ostalo[Pokrenut je zahtjev za provjeru datuma],\">=\"&DATEVALUE(\" 1 \"&SažetakMjesečnihTroškova[[#Headers],[Lipanj]]&_GODINA),Ostalo[Pokrenut je zahtjev za provjeru datuma],\"<=\"&I$4)","v":{"v":0,"d":"0.00 kn"}},{"$f":"SUMIFS(TroškoviPoStavkama[Iznos čeka],TroškoviPoStavkama[Šifra glavne knjige],SažetakMjesečnihTroškova[[#This Row],[Šifra glavne knjige]],TroškoviPoStavkama[Datum izdavanja računa],\">=\"&J$3,TroškoviPoStavkama[Datum izdavanja računa],\"<=\"&J$4)+SUMIFS(Ostalo[Iznos čeka],Ostalo[Šifra glavne knjige],SažetakMjesečnihTroškova[[#This Row],[Šifra glavne knjige]],Ostalo[Pokrenut je zahtjev za provjeru datuma],\">=\"&DATEVALUE(\" 1 \"&SažetakMjesečnihTroškova[[#Headers],[Srpanj]]&_GODINA),Ostalo[Pokrenut je zahtjev za provjeru datuma],\"<=\"&J$4)","v":{"v":0,"d":"0.00 kn"}},{"$f":"SUMIFS(TroškoviPoStavkama[Iznos čeka],TroškoviPoStavkama[Šifra glavne knjige],SažetakMjesečnihTroškova[[#This Row],[Šifra glavne knjige]],TroškoviPoStavkama[Datum izdavanja računa],\">=\"&K$3,TroškoviPoStavkama[Datum izdavanja računa],\"<=\"&K$4)+SUMIFS(Ostalo[Iznos čeka],Ostalo[Šifra glavne knjige],SažetakMjesečnihTroškova[[#This Row],[Šifra glavne knjige]],Ostalo[Pokrenut je zahtjev za provjeru datuma],\">=\"&DATEVALUE(\" 1 \"&SažetakMjesečnihTroškova[[#Headers],[Kolovoz]]&_GODINA),Ostalo[Pokrenut je zahtjev za provjeru datuma],\"<=\"&K$4)","v":{"v":0,"d":"0.00 kn"}},{"$f":"SUMIFS(TroškoviPoStavkama[Iznos čeka],TroškoviPoStavkama[Šifra glavne knjige],SažetakMjesečnihTroškova[[#This Row],[Šifra glavne knjige]],TroškoviPoStavkama[Datum izdavanja računa],\">=\"&L$3,TroškoviPoStavkama[Datum izdavanja računa],\"<=\"&L$4)+SUMIFS(Ostalo[Iznos čeka],Ostalo[Šifra glavne knjige],SažetakMjesečnihTroškova[[#This Row],[Šifra glavne knjige]],Ostalo[Pokrenut je zahtjev za provjeru datuma],\">=\"&DATEVALUE(\" 1 \"&SažetakMjesečnihTroškova[[#Headers],[Rujan]]&_GODINA),Ostalo[Pokrenut je zahtjev za provjeru datuma],\"<=\"&L$4)","v":{"v":0,"d":"0.00 kn"}},{"$f":"SUMIFS(TroškoviPoStavkama[Iznos čeka],TroškoviPoStavkama[Šifra glavne knjige],SažetakMjesečnihTroškova[[#This Row],[Šifra glavne knjige]],TroškoviPoStavkama[Datum izdavanja računa],\">=\"&M$3,TroškoviPoStavkama[Datum izdavanja računa],\"<=\"&M$4)+SUMIFS(Ostalo[Iznos čeka],Ostalo[Šifra glavne knjige],SažetakMjesečnihTroškova[[#This Row],[Šifra glavne knjige]],Ostalo[Pokrenut je zahtjev za provjeru datuma],\">=\"&DATEVALUE(\" 1 \"&SažetakMjesečnihTroškova[[#Headers],[Listopad]]&_GODINA),Ostalo[Pokrenut je zahtjev za provjeru datuma],\"<=\"&M$4)","v":{"v":0,"d":"0.00 kn"}},{"$f":"SUMIFS(TroškoviPoStavkama[Iznos čeka],TroškoviPoStavkama[Šifra glavne knjige],SažetakMjesečnihTroškova[[#This Row],[Šifra glavne knjige]],TroškoviPoStavkama[Datum izdavanja računa],\">=\"&N$3,TroškoviPoStavkama[Datum izdavanja računa],\"<=\"&N$4)+SUMIFS(Ostalo[Iznos čeka],Ostalo[Šifra glavne knjige],SažetakMjesečnihTroškova[[#This Row],[Šifra glavne knjige]],Ostalo[Pokrenut je zahtjev za provjeru datuma],\">=\"&DATEVALUE(\" 1 \"&SažetakMjesečnihTroškova[[#Headers],[Studeni]]&_GODINA),Ostalo[Pokrenut je zahtjev za provjeru datuma],\"<=\"&N$4)","v":{"v":0,"d":"0.00 kn"}},{"$f":"SUMIFS(TroškoviPoStavkama[Iznos čeka],TroškoviPoStavkama[Šifra glavne knjige],SažetakMjesečnihTroškova[[#This Row],[Šifra glavne knjige]],TroškoviPoStavkama[Datum izdavanja računa],\">=\"&O$3,TroškoviPoStavkama[Datum izdavanja računa],\"<=\"&O$4)+SUMIFS(Ostalo[Iznos čeka],Ostalo[Šifra glavne knjige],SažetakMjesečnihTroškova[[#This Row],[Šifra glavne knjige]],Ostalo[Pokrenut je zahtjev za provjeru datuma],\">=\"&DATEVALUE(\" 1 \"&SažetakMjesečnihTroškova[[#Headers],[Prosinac]]&_GODINA),Ostalo[Pokrenut je zahtjev za provjeru datuma],\"<=\"&O$4)","v":{"v":0,"d":"0.00 kn"}},{"$f":"SUM(SažetakMjesečnihTroškova[[#This Row],[Siječanj]:[Prosinac]])","v":{"v":0,"d":"0.00 kn"}}]
[null,6000,"Troškovi klijenata",{"$f":"SUMIFS(TroškoviPoStavkama[Iznos čeka],TroškoviPoStavkama[Šifra glavne knjige],SažetakMjesečnihTroškova[[#This Row],[Šifra glavne knjige]],TroškoviPoStavkama[Datum izdavanja računa],\">=\"&D$3,TroškoviPoStavkama[Datum izdavanja računa],\"<=\"&D$4)+SUMIFS(Ostalo[Iznos čeka],Ostalo[Šifra glavne knjige],SažetakMjesečnihTroškova[[#This Row],[Šifra glavne knjige]],Ostalo[Pokrenut je zahtjev za provjeru datuma],\">=\"&DATEVALUE(\" 1 \"&SažetakMjesečnihTroškova[[#Headers],[Siječanj]]&_GODINA),Ostalo[Pokrenut je zahtjev za provjeru datuma],\"<=\"&D$4)","v":{"v":0,"d":"0.00 kn"}},{"$f":"SUMIFS(TroškoviPoStavkama[Iznos čeka],TroškoviPoStavkama[Šifra glavne knjige],SažetakMjesečnihTroškova[[#This Row],[Šifra glavne knjige]],TroškoviPoStavkama[Datum izdavanja računa],\">=\"&E$3,TroškoviPoStavkama[Datum izdavanja računa],\"<=\"&E$4)+SUMIFS(Ostalo[Iznos čeka],Ostalo[Šifra glavne knjige],SažetakMjesečnihTroškova[[#This Row],[Šifra glavne knjige]],Ostalo[Pokrenut je zahtjev za provjeru datuma],\">=\"&DATEVALUE(\" 1 \"&SažetakMjesečnihTroškova[[#Headers],[Veljača]]&_GODINA),Ostalo[Pokrenut je zahtjev za provjeru datuma],\"<=\"&E$4)","v":{"v":0,"d":"0.00 kn"}},{"$f":"SUMIFS(TroškoviPoStavkama[Iznos čeka],TroškoviPoStavkama[Šifra glavne knjige],SažetakMjesečnihTroškova[[#This Row],[Šifra glavne knjige]],TroškoviPoStavkama[Datum izdavanja računa],\">=\"&F$3,TroškoviPoStavkama[Datum izdavanja računa],\"<=\"&F$4)+SUMIFS(Ostalo[Iznos čeka],Ostalo[Šifra glavne knjige],SažetakMjesečnihTroškova[[#This Row],[Šifra glavne knjige]],Ostalo[Pokrenut je zahtjev za provjeru datuma],\">=\"&DATEVALUE(\" 1 \"&SažetakMjesečnihTroškova[[#Headers],[Ožujak]]&_GODINA),Ostalo[Pokrenut je zahtjev za provjeru datuma],\"<=\"&F$4)","v":{"v":0,"d":"0.00 kn"}},{"$f":"SUMIFS(TroškoviPoStavkama[Iznos čeka],TroškoviPoStavkama[Šifra glavne knjige],SažetakMjesečnihTroškova[[#This Row],[Šifra glavne knjige]],TroškoviPoStavkama[Datum izdavanja računa],\">=\"&G$3,TroškoviPoStavkama[Datum izdavanja računa],\"<=\"&G$4)+SUMIFS(Ostalo[Iznos čeka],Ostalo[Šifra glavne knjige],SažetakMjesečnihTroškova[[#This Row],[Šifra glavne knjige]],Ostalo[Pokrenut je zahtjev za provjeru datuma],\">=\"&DATEVALUE(\" 1 \"&SažetakMjesečnihTroškova[[#Headers],[Travanj]]&_GODINA),Ostalo[Pokrenut je zahtjev za provjeru datuma],\"<=\"&G$4)","v":{"v":0,"d":"0.00 kn"}},{"$f":"SUMIFS(TroškoviPoStavkama[Iznos čeka],TroškoviPoStavkama[Šifra glavne knjige],SažetakMjesečnihTroškova[[#This Row],[Šifra glavne knjige]],TroškoviPoStavkama[Datum izdavanja računa],\">=\"&H$3,TroškoviPoStavkama[Datum izdavanja računa],\"<=\"&H$4)+SUMIFS(Ostalo[Iznos čeka],Ostalo[Šifra glavne knjige],SažetakMjesečnihTroškova[[#This Row],[Šifra glavne knjige]],Ostalo[Pokrenut je zahtjev za provjeru datuma],\">=\"&DATEVALUE(\" 1 \"&SažetakMjesečnihTroškova[[#Headers],[Svibanj]]&_GODINA),Ostalo[Pokrenut je zahtjev za provjeru datuma],\"<=\"&H$4)","v":{"v":0,"d":"0.00 kn"}},{"$f":"SUMIFS(TroškoviPoStavkama[Iznos čeka],TroškoviPoStavkama[Šifra glavne knjige],SažetakMjesečnihTroškova[[#This Row],[Šifra glavne knjige]],TroškoviPoStavkama[Datum izdavanja računa],\">=\"&I$3,TroškoviPoStavkama[Datum izdavanja računa],\"<=\"&I$4)+SUMIFS(Ostalo[Iznos čeka],Ostalo[Šifra glavne knjige],SažetakMjesečnihTroškova[[#This Row],[Šifra glavne knjige]],Ostalo[Pokrenut je zahtjev za provjeru datuma],\">=\"&DATEVALUE(\" 1 \"&SažetakMjesečnihTroškova[[#Headers],[Lipanj]]&_GODINA),Ostalo[Pokrenut je zahtjev za provjeru datuma],\"<=\"&I$4)","v":{"v":0,"d":"0.00 kn"}},{"$f":"SUMIFS(TroškoviPoStavkama[Iznos čeka],TroškoviPoStavkama[Šifra glavne knjige],SažetakMjesečnihTroškova[[#This Row],[Šifra glavne knjige]],TroškoviPoStavkama[Datum izdavanja računa],\">=\"&J$3,TroškoviPoStavkama[Datum izdavanja računa],\"<=\"&J$4)+SUMIFS(Ostalo[Iznos čeka],Ostalo[Šifra glavne knjige],SažetakMjesečnihTroškova[[#This Row],[Šifra glavne knjige]],Ostalo[Pokrenut je zahtjev za provjeru datuma],\">=\"&DATEVALUE(\" 1 \"&SažetakMjesečnihTroškova[[#Headers],[Srpanj]]&_GODINA),Ostalo[Pokrenut je zahtjev za provjeru datuma],\"<=\"&J$4)","v":{"v":0,"d":"0.00 kn"}},{"$f":"SUMIFS(TroškoviPoStavkama[Iznos čeka],TroškoviPoStavkama[Šifra glavne knjige],SažetakMjesečnihTroškova[[#This Row],[Šifra glavne knjige]],TroškoviPoStavkama[Datum izdavanja računa],\">=\"&K$3,TroškoviPoStavkama[Datum izdavanja računa],\"<=\"&K$4)+SUMIFS(Ostalo[Iznos čeka],Ostalo[Šifra glavne knjige],SažetakMjesečnihTroškova[[#This Row],[Šifra glavne knjige]],Ostalo[Pokrenut je zahtjev za provjeru datuma],\">=\"&DATEVALUE(\" 1 \"&SažetakMjesečnihTroškova[[#Headers],[Kolovoz]]&_GODINA),Ostalo[Pokrenut je zahtjev za provjeru datuma],\"<=\"&K$4)","v":{"v":0,"d":"0.00 kn"}},{"$f":"SUMIFS(TroškoviPoStavkama[Iznos čeka],TroškoviPoStavkama[Šifra glavne knjige],SažetakMjesečnihTroškova[[#This Row],[Šifra glavne knjige]],TroškoviPoStavkama[Datum izdavanja računa],\">=\"&L$3,TroškoviPoStavkama[Datum izdavanja računa],\"<=\"&L$4)+SUMIFS(Ostalo[Iznos čeka],Ostalo[Šifra glavne knjige],SažetakMjesečnihTroškova[[#This Row],[Šifra glavne knjige]],Ostalo[Pokrenut je zahtjev za provjeru datuma],\">=\"&DATEVALUE(\" 1 \"&SažetakMjesečnihTroškova[[#Headers],[Rujan]]&_GODINA),Ostalo[Pokrenut je zahtjev za provjeru datuma],\"<=\"&L$4)","v":{"v":0,"d":"0.00 kn"}},{"$f":"SUMIFS(TroškoviPoStavkama[Iznos čeka],TroškoviPoStavkama[Šifra glavne knjige],SažetakMjesečnihTroškova[[#This Row],[Šifra glavne knjige]],TroškoviPoStavkama[Datum izdavanja računa],\">=\"&M$3,TroškoviPoStavkama[Datum izdavanja računa],\"<=\"&M$4)+SUMIFS(Ostalo[Iznos čeka],Ostalo[Šifra glavne knjige],SažetakMjesečnihTroškova[[#This Row],[Šifra glavne knjige]],Ostalo[Pokrenut je zahtjev za provjeru datuma],\">=\"&DATEVALUE(\" 1 \"&SažetakMjesečnihTroškova[[#Headers],[Listopad]]&_GODINA),Ostalo[Pokrenut je zahtjev za provjeru datuma],\"<=\"&M$4)","v":{"v":0,"d":"0.00 kn"}},{"$f":"SUMIFS(TroškoviPoStavkama[Iznos čeka],TroškoviPoStavkama[Šifra glavne knjige],SažetakMjesečnihTroškova[[#This Row],[Šifra glavne knjige]],TroškoviPoStavkama[Datum izdavanja računa],\">=\"&N$3,TroškoviPoStavkama[Datum izdavanja računa],\"<=\"&N$4)+SUMIFS(Ostalo[Iznos čeka],Ostalo[Šifra glavne knjige],SažetakMjesečnihTroškova[[#This Row],[Šifra glavne knjige]],Ostalo[Pokrenut je zahtjev za provjeru datuma],\">=\"&DATEVALUE(\" 1 \"&SažetakMjesečnihTroškova[[#Headers],[Studeni]]&_GODINA),Ostalo[Pokrenut je zahtjev za provjeru datuma],\"<=\"&N$4)","v":{"v":0,"d":"0.00 kn"}},{"$f":"SUMIFS(TroškoviPoStavkama[Iznos čeka],TroškoviPoStavkama[Šifra glavne knjige],SažetakMjesečnihTroškova[[#This Row],[Šifra glavne knjige]],TroškoviPoStavkama[Datum izdavanja računa],\">=\"&O$3,TroškoviPoStavkama[Datum izdavanja računa],\"<=\"&O$4)+SUMIFS(Ostalo[Iznos čeka],Ostalo[Šifra glavne knjige],SažetakMjesečnihTroškova[[#This Row],[Šifra glavne knjige]],Ostalo[Pokrenut je zahtjev za provjeru datuma],\">=\"&DATEVALUE(\" 1 \"&SažetakMjesečnihTroškova[[#Headers],[Prosinac]]&_GODINA),Ostalo[Pokrenut je zahtjev za provjeru datuma],\"<=\"&O$4)","v":{"v":0,"d":"0.00 kn"}},{"$f":"SUM(SažetakMjesečnihTroškova[[#This Row],[Siječanj]:[Prosinac]])","v":{"v":0,"d":"0.00 kn"}}]
[null,7000,"Računala",{"$f":"SUMIFS(TroškoviPoStavkama[Iznos čeka],TroškoviPoStavkama[Šifra glavne knjige],SažetakMjesečnihTroškova[[#This Row],[Šifra glavne knjige]],TroškoviPoStavkama[Datum izdavanja računa],\">=\"&D$3,TroškoviPoStavkama[Datum izdavanja računa],\"<=\"&D$4)+SUMIFS(Ostalo[Iznos čeka],Ostalo[Šifra glavne knjige],SažetakMjesečnihTroškova[[#This Row],[Šifra glavne knjige]],Ostalo[Pokrenut je zahtjev za provjeru datuma],\">=\"&DATEVALUE(\" 1 \"&SažetakMjesečnihTroškova[[#Headers],[Siječanj]]&_GODINA),Ostalo[Pokrenut je zahtjev za provjeru datuma],\"<=\"&D$4)","v":{"v":0,"d":"0.00 kn"}},{"$f":"SUMIFS(TroškoviPoStavkama[Iznos čeka],TroškoviPoStavkama[Šifra glavne knjige],SažetakMjesečnihTroškova[[#This Row],[Šifra glavne knjige]],TroškoviPoStavkama[Datum izdavanja računa],\">=\"&E$3,TroškoviPoStavkama[Datum izdavanja računa],\"<=\"&E$4)+SUMIFS(Ostalo[Iznos čeka],Ostalo[Šifra glavne knjige],SažetakMjesečnihTroškova[[#This Row],[Šifra glavne knjige]],Ostalo[Pokrenut je zahtjev za provjeru datuma],\">=\"&DATEVALUE(\" 1 \"&SažetakMjesečnihTroškova[[#Headers],[Veljača]]&_GODINA),Ostalo[Pokrenut je zahtjev za provjeru datuma],\"<=\"&E$4)","v":{"v":0,"d":"0.00 kn"}},{"$f":"SUMIFS(TroškoviPoStavkama[Iznos čeka],TroškoviPoStavkama[Šifra glavne knjige],SažetakMjesečnihTroškova[[#This Row],[Šifra glavne knjige]],TroškoviPoStavkama[Datum izdavanja računa],\">=\"&F$3,TroškoviPoStavkama[Datum izdavanja računa],\"<=\"&F$4)+SUMIFS(Ostalo[Iznos čeka],Ostalo[Šifra glavne knjige],SažetakMjesečnihTroškova[[#This Row],[Šifra glavne knjige]],Ostalo[Pokrenut je zahtjev za provjeru datuma],\">=\"&DATEVALUE(\" 1 \"&SažetakMjesečnihTroškova[[#Headers],[Ožujak]]&_GODINA),Ostalo[Pokrenut je zahtjev za provjeru datuma],\"<=\"&F$4)","v":{"v":0,"d":"0.00 kn"}},{"$f":"SUMIFS(TroškoviPoStavkama[Iznos čeka],TroškoviPoStavkama[Šifra glavne knjige],SažetakMjesečnihTroškova[[#This Row],[Šifra glavne knjige]],TroškoviPoStavkama[Datum izdavanja računa],\">=\"&G$3,TroškoviPoStavkama[Datum izdavanja računa],\"<=\"&G$4)+SUMIFS(Ostalo[Iznos čeka],Ostalo[Šifra glavne knjige],SažetakMjesečnihTroškova[[#This Row],[Šifra glavne knjige]],Ostalo[Pokrenut je zahtjev za provjeru datuma],\">=\"&DATEVALUE(\" 1 \"&SažetakMjesečnihTroškova[[#Headers],[Travanj]]&_GODINA),Ostalo[Pokrenut je zahtjev za provjeru datuma],\"<=\"&G$4)","v":{"v":0,"d":"0.00 kn"}},{"$f":"SUMIFS(TroškoviPoStavkama[Iznos čeka],TroškoviPoStavkama[Šifra glavne knjige],SažetakMjesečnihTroškova[[#This Row],[Šifra glavne knjige]],TroškoviPoStavkama[Datum izdavanja računa],\">=\"&H$3,TroškoviPoStavkama[Datum izdavanja računa],\"<=\"&H$4)+SUMIFS(Ostalo[Iznos čeka],Ostalo[Šifra glavne knjige],SažetakMjesečnihTroškova[[#This Row],[Šifra glavne knjige]],Ostalo[Pokrenut je zahtjev za provjeru datuma],\">=\"&DATEVALUE(\" 1 \"&SažetakMjesečnihTroškova[[#Headers],[Svibanj]]&_GODINA),Ostalo[Pokrenut je zahtjev za provjeru datuma],\"<=\"&H$4)","v":{"v":0,"d":"0.00 kn"}},{"$f":"SUMIFS(TroškoviPoStavkama[Iznos čeka],TroškoviPoStavkama[Šifra glavne knjige],SažetakMjesečnihTroškova[[#This Row],[Šifra glavne knjige]],TroškoviPoStavkama[Datum izdavanja računa],\">=\"&I$3,TroškoviPoStavkama[Datum izdavanja računa],\"<=\"&I$4)+SUMIFS(Ostalo[Iznos čeka],Ostalo[Šifra glavne knjige],SažetakMjesečnihTroškova[[#This Row],[Šifra glavne knjige]],Ostalo[Pokrenut je zahtjev za provjeru datuma],\">=\"&DATEVALUE(\" 1 \"&SažetakMjesečnihTroškova[[#Headers],[Lipanj]]&_GODINA),Ostalo[Pokrenut je zahtjev za provjeru datuma],\"<=\"&I$4)","v":{"v":0,"d":"0.00 kn"}},{"$f":"SUMIFS(TroškoviPoStavkama[Iznos čeka],TroškoviPoStavkama[Šifra glavne knjige],SažetakMjesečnihTroškova[[#This Row],[Šifra glavne knjige]],TroškoviPoStavkama[Datum izdavanja računa],\">=\"&J$3,TroškoviPoStavkama[Datum izdavanja računa],\"<=\"&J$4)+SUMIFS(Ostalo[Iznos čeka],Ostalo[Šifra glavne knjige],SažetakMjesečnihTroškova[[#This Row],[Šifra glavne knjige]],Ostalo[Pokrenut je zahtjev za provjeru datuma],\">=\"&DATEVALUE(\" 1 \"&SažetakMjesečnihTroškova[[#Headers],[Srpanj]]&_GODINA),Ostalo[Pokrenut je zahtjev za provjeru datuma],\"<=\"&J$4)","v":{"v":0,"d":"0.00 kn"}},{"$f":"SUMIFS(TroškoviPoStavkama[Iznos čeka],TroškoviPoStavkama[Šifra glavne knjige],SažetakMjesečnihTroškova[[#This Row],[Šifra glavne knjige]],TroškoviPoStavkama[Datum izdavanja računa],\">=\"&K$3,TroškoviPoStavkama[Datum izdavanja računa],\"<=\"&K$4)+SUMIFS(Ostalo[Iznos čeka],Ostalo[Šifra glavne knjige],SažetakMjesečnihTroškova[[#This Row],[Šifra glavne knjige]],Ostalo[Pokrenut je zahtjev za provjeru datuma],\">=\"&DATEVALUE(\" 1 \"&SažetakMjesečnihTroškova[[#Headers],[Kolovoz]]&_GODINA),Ostalo[Pokrenut je zahtjev za provjeru datuma],\"<=\"&K$4)","v":{"v":0,"d":"0.00 kn"}},{"$f":"SUMIFS(TroškoviPoStavkama[Iznos čeka],TroškoviPoStavkama[Šifra glavne knjige],SažetakMjesečnihTroškova[[#This Row],[Šifra glavne knjige]],TroškoviPoStavkama[Datum izdavanja računa],\">=\"&L$3,TroškoviPoStavkama[Datum izdavanja računa],\"<=\"&L$4)+SUMIFS(Ostalo[Iznos čeka],Ostalo[Šifra glavne knjige],SažetakMjesečnihTroškova[[#This Row],[Šifra glavne knjige]],Ostalo[Pokrenut je zahtjev za provjeru datuma],\">=\"&DATEVALUE(\" 1 \"&SažetakMjesečnihTroškova[[#Headers],[Rujan]]&_GODINA),Ostalo[Pokrenut je zahtjev za provjeru datuma],\"<=\"&L$4)","v":{"v":0,"d":"0.00 kn"}},{"$f":"SUMIFS(TroškoviPoStavkama[Iznos čeka],TroškoviPoStavkama[Šifra glavne knjige],SažetakMjesečnihTroškova[[#This Row],[Šifra glavne knjige]],TroškoviPoStavkama[Datum izdavanja računa],\">=\"&M$3,TroškoviPoStavkama[Datum izdavanja računa],\"<=\"&M$4)+SUMIFS(Ostalo[Iznos čeka],Ostalo[Šifra glavne knjige],SažetakMjesečnihTroškova[[#This Row],[Šifra glavne knjige]],Ostalo[Pokrenut je zahtjev za provjeru datuma],\">=\"&DATEVALUE(\" 1 \"&SažetakMjesečnihTroškova[[#Headers],[Listopad]]&_GODINA),Ostalo[Pokrenut je zahtjev za provjeru datuma],\"<=\"&M$4)","v":{"v":0,"d":"0.00 kn"}},{"$f":"SUMIFS(TroškoviPoStavkama[Iznos čeka],TroškoviPoStavkama[Šifra glavne knjige],SažetakMjesečnihTroškova[[#This Row],[Šifra glavne knjige]],TroškoviPoStavkama[Datum izdavanja računa],\">=\"&N$3,TroškoviPoStavkama[Datum izdavanja računa],\"<=\"&N$4)+SUMIFS(Ostalo[Iznos čeka],Ostalo[Šifra glavne knjige],SažetakMjesečnihTroškova[[#This Row],[Šifra glavne knjige]],Ostalo[Pokrenut je zahtjev za provjeru datuma],\">=\"&DATEVALUE(\" 1 \"&SažetakMjesečnihTroškova[[#Headers],[Studeni]]&_GODINA),Ostalo[Pokrenut je zahtjev za provjeru datuma],\"<=\"&N$4)","v":{"v":0,"d":"0.00 kn"}},{"$f":"SUMIFS(TroškoviPoStavkama[Iznos čeka],TroškoviPoStavkama[Šifra glavne knjige],SažetakMjesečnihTroškova[[#This Row],[Šifra glavne knjige]],TroškoviPoStavkama[Datum izdavanja računa],\">=\"&O$3,TroškoviPoStavkama[Datum izdavanja računa],\"<=\"&O$4)+SUMIFS(Ostalo[Iznos čeka],Ostalo[Šifra glavne knjige],SažetakMjesečnihTroškova[[#This Row],[Šifra glavne knjige]],Ostalo[Pokrenut je zahtjev za provjeru datuma],\">=\"&DATEVALUE(\" 1 \"&SažetakMjesečnihTroškova[[#Headers],[Prosinac]]&_GODINA),Ostalo[Pokrenut je zahtjev za provjeru datuma],\"<=\"&O$4)","v":{"v":0,"d":"0.00 kn"}},{"$f":"SUM(SažetakMjesečnihTroškova[[#This Row],[Siječanj]:[Prosinac]])","v":{"v":0,"d":"0.00 kn"}}]
[null,8000,"Zdravstveno osiguranje",{"$f":"SUMIFS(TroškoviPoStavkama[Iznos čeka],TroškoviPoStavkama[Šifra glavne knjige],SažetakMjesečnihTroškova[[#This Row],[Šifra glavne knjige]],TroškoviPoStavkama[Datum izdavanja računa],\">=\"&D$3,TroškoviPoStavkama[Datum izdavanja računa],\"<=\"&D$4)+SUMIFS(Ostalo[Iznos čeka],Ostalo[Šifra glavne knjige],SažetakMjesečnihTroškova[[#This Row],[Šifra glavne knjige]],Ostalo[Pokrenut je zahtjev za provjeru datuma],\">=\"&DATEVALUE(\" 1 \"&SažetakMjesečnihTroškova[[#Headers],[Siječanj]]&_GODINA),Ostalo[Pokrenut je zahtjev za provjeru datuma],\"<=\"&D$4)","v":{"v":0,"d":"0.00 kn"}},{"$f":"SUMIFS(TroškoviPoStavkama[Iznos čeka],TroškoviPoStavkama[Šifra glavne knjige],SažetakMjesečnihTroškova[[#This Row],[Šifra glavne knjige]],TroškoviPoStavkama[Datum izdavanja računa],\">=\"&E$3,TroškoviPoStavkama[Datum izdavanja računa],\"<=\"&E$4)+SUMIFS(Ostalo[Iznos čeka],Ostalo[Šifra glavne knjige],SažetakMjesečnihTroškova[[#This Row],[Šifra glavne knjige]],Ostalo[Pokrenut je zahtjev za provjeru datuma],\">=\"&DATEVALUE(\" 1 \"&SažetakMjesečnihTroškova[[#Headers],[Veljača]]&_GODINA),Ostalo[Pokrenut je zahtjev za provjeru datuma],\"<=\"&E$4)","v":{"v":0,"d":"0.00 kn"}},{"$f":"SUMIFS(TroškoviPoStavkama[Iznos čeka],TroškoviPoStavkama[Šifra glavne knjige],SažetakMjesečnihTroškova[[#This Row],[Šifra glavne knjige]],TroškoviPoStavkama[Datum izdavanja računa],\">=\"&F$3,TroškoviPoStavkama[Datum izdavanja računa],\"<=\"&F$4)+SUMIFS(Ostalo[Iznos čeka],Ostalo[Šifra glavne knjige],SažetakMjesečnihTroškova[[#This Row],[Šifra glavne knjige]],Ostalo[Pokrenut je zahtjev za provjeru datuma],\">=\"&DATEVALUE(\" 1 \"&SažetakMjesečnihTroškova[[#Headers],[Ožujak]]&_GODINA),Ostalo[Pokrenut je zahtjev za provjeru datuma],\"<=\"&F$4)","v":{"v":0,"d":"0.00 kn"}},{"$f":"SUMIFS(TroškoviPoStavkama[Iznos čeka],TroškoviPoStavkama[Šifra glavne knjige],SažetakMjesečnihTroškova[[#This Row],[Šifra glavne knjige]],TroškoviPoStavkama[Datum izdavanja računa],\">=\"&G$3,TroškoviPoStavkama[Datum izdavanja računa],\"<=\"&G$4)+SUMIFS(Ostalo[Iznos čeka],Ostalo[Šifra glavne knjige],SažetakMjesečnihTroškova[[#This Row],[Šifra glavne knjige]],Ostalo[Pokrenut je zahtjev za provjeru datuma],\">=\"&DATEVALUE(\" 1 \"&SažetakMjesečnihTroškova[[#Headers],[Travanj]]&_GODINA),Ostalo[Pokrenut je zahtjev za provjeru datuma],\"<=\"&G$4)","v":{"v":0,"d":"0.00 kn"}},{"$f":"SUMIFS(TroškoviPoStavkama[Iznos čeka],TroškoviPoStavkama[Šifra glavne knjige],SažetakMjesečnihTroškova[[#This Row],[Šifra glavne knjige]],TroškoviPoStavkama[Datum izdavanja računa],\">=\"&H$3,TroškoviPoStavkama[Datum izdavanja računa],\"<=\"&H$4)+SUMIFS(Ostalo[Iznos čeka],Ostalo[Šifra glavne knjige],SažetakMjesečnihTroškova[[#This Row],[Šifra glavne knjige]],Ostalo[Pokrenut je zahtjev za provjeru datuma],\">=\"&DATEVALUE(\" 1 \"&SažetakMjesečnihTroškova[[#Headers],[Svibanj]]&_GODINA),Ostalo[Pokrenut je zahtjev za provjeru datuma],\"<=\"&H$4)","v":{"v":0,"d":"0.00 kn"}},{"$f":"SUMIFS(TroškoviPoStavkama[Iznos čeka],TroškoviPoStavkama[Šifra glavne knjige],SažetakMjesečnihTroškova[[#This Row],[Šifra glavne knjige]],TroškoviPoStavkama[Datum izdavanja računa],\">=\"&I$3,TroškoviPoStavkama[Datum izdavanja računa],\"<=\"&I$4)+SUMIFS(Ostalo[Iznos čeka],Ostalo[Šifra glavne knjige],SažetakMjesečnihTroškova[[#This Row],[Šifra glavne knjige]],Ostalo[Pokrenut je zahtjev za provjeru datuma],\">=\"&DATEVALUE(\" 1 \"&SažetakMjesečnihTroškova[[#Headers],[Lipanj]]&_GODINA),Ostalo[Pokrenut je zahtjev za provjeru datuma],\"<=\"&I$4)","v":{"v":0,"d":"0.00 kn"}},{"$f":"SUMIFS(TroškoviPoStavkama[Iznos čeka],TroškoviPoStavkama[Šifra glavne knjige],SažetakMjesečnihTroškova[[#This Row],[Šifra glavne knjige]],TroškoviPoStavkama[Datum izdavanja računa],\">=\"&J$3,TroškoviPoStavkama[Datum izdavanja računa],\"<=\"&J$4)+SUMIFS(Ostalo[Iznos čeka],Ostalo[Šifra glavne knjige],SažetakMjesečnihTroškova[[#This Row],[Šifra glavne knjige]],Ostalo[Pokrenut je zahtjev za provjeru datuma],\">=\"&DATEVALUE(\" 1 \"&SažetakMjesečnihTroškova[[#Headers],[Srpanj]]&_GODINA),Ostalo[Pokrenut je zahtjev za provjeru datuma],\"<=\"&J$4)","v":{"v":0,"d":"0.00 kn"}},{"$f":"SUMIFS(TroškoviPoStavkama[Iznos čeka],TroškoviPoStavkama[Šifra glavne knjige],SažetakMjesečnihTroškova[[#This Row],[Šifra glavne knjige]],TroškoviPoStavkama[Datum izdavanja računa],\">=\"&K$3,TroškoviPoStavkama[Datum izdavanja računa],\"<=\"&K$4)+SUMIFS(Ostalo[Iznos čeka],Ostalo[Šifra glavne knjige],SažetakMjesečnihTroškova[[#This Row],[Šifra glavne knjige]],Ostalo[Pokrenut je zahtjev za provjeru datuma],\">=\"&DATEVALUE(\" 1 \"&SažetakMjesečnihTroškova[[#Headers],[Kolovoz]]&_GODINA),Ostalo[Pokrenut je zahtjev za provjeru datuma],\"<=\"&K$4)","v":{"v":0,"d":"0.00 kn"}},{"$f":"SUMIFS(TroškoviPoStavkama[Iznos čeka],TroškoviPoStavkama[Šifra glavne knjige],SažetakMjesečnihTroškova[[#This Row],[Šifra glavne knjige]],TroškoviPoStavkama[Datum izdavanja računa],\">=\"&L$3,TroškoviPoStavkama[Datum izdavanja računa],\"<=\"&L$4)+SUMIFS(Ostalo[Iznos čeka],Ostalo[Šifra glavne knjige],SažetakMjesečnihTroškova[[#This Row],[Šifra glavne knjige]],Ostalo[Pokrenut je zahtjev za provjeru datuma],\">=\"&DATEVALUE(\" 1 \"&SažetakMjesečnihTroškova[[#Headers],[Rujan]]&_GODINA),Ostalo[Pokrenut je zahtjev za provjeru datuma],\"<=\"&L$4)","v":{"v":0,"d":"0.00 kn"}},{"$f":"SUMIFS(TroškoviPoStavkama[Iznos čeka],TroškoviPoStavkama[Šifra glavne knjige],SažetakMjesečnihTroškova[[#This Row],[Šifra glavne knjige]],TroškoviPoStavkama[Datum izdavanja računa],\">=\"&M$3,TroškoviPoStavkama[Datum izdavanja računa],\"<=\"&M$4)+SUMIFS(Ostalo[Iznos čeka],Ostalo[Šifra glavne knjige],SažetakMjesečnihTroškova[[#This Row],[Šifra glavne knjige]],Ostalo[Pokrenut je zahtjev za provjeru datuma],\">=\"&DATEVALUE(\" 1 \"&SažetakMjesečnihTroškova[[#Headers],[Listopad]]&_GODINA),Ostalo[Pokrenut je zahtjev za provjeru datuma],\"<=\"&M$4)","v":{"v":0,"d":"0.00 kn"}},{"$f":"SUMIFS(TroškoviPoStavkama[Iznos čeka],TroškoviPoStavkama[Šifra glavne knjige],SažetakMjesečnihTroškova[[#This Row],[Šifra glavne knjige]],TroškoviPoStavkama[Datum izdavanja računa],\">=\"&N$3,TroškoviPoStavkama[Datum izdavanja računa],\"<=\"&N$4)+SUMIFS(Ostalo[Iznos čeka],Ostalo[Šifra glavne knjige],SažetakMjesečnihTroškova[[#This Row],[Šifra glavne knjige]],Ostalo[Pokrenut je zahtjev za provjeru datuma],\">=\"&DATEVALUE(\" 1 \"&SažetakMjesečnihTroškova[[#Headers],[Studeni]]&_GODINA),Ostalo[Pokrenut je zahtjev za provjeru datuma],\"<=\"&N$4)","v":{"v":0,"d":"0.00 kn"}},{"$f":"SUMIFS(TroškoviPoStavkama[Iznos čeka],TroškoviPoStavkama[Šifra glavne knjige],SažetakMjesečnihTroškova[[#This Row],[Šifra glavne knjige]],TroškoviPoStavkama[Datum izdavanja računa],\">=\"&O$3,TroškoviPoStavkama[Datum izdavanja računa],\"<=\"&O$4)+SUMIFS(Ostalo[Iznos čeka],Ostalo[Šifra glavne knjige],SažetakMjesečnihTroškova[[#This Row],[Šifra glavne knjige]],Ostalo[Pokrenut je zahtjev za provjeru datuma],\">=\"&DATEVALUE(\" 1 \"&SažetakMjesečnihTroškova[[#Headers],[Prosinac]]&_GODINA),Ostalo[Pokrenut je zahtjev za provjeru datuma],\"<=\"&O$4)","v":{"v":0,"d":"0.00 kn"}},{"$f":"SUM(SažetakMjesečnihTroškova[[#This Row],[Siječanj]:[Prosinac]])","v":{"v":0,"d":"0.00 kn"}}]
[null,9000,"Troškovi gradnje",{"$f":"SUMIFS(TroškoviPoStavkama[Iznos čeka],TroškoviPoStavkama[Šifra glavne knjige],SažetakMjesečnihTroškova[[#This Row],[Šifra glavne knjige]],TroškoviPoStavkama[Datum izdavanja računa],\">=\"&D$3,TroškoviPoStavkama[Datum izdavanja računa],\"<=\"&D$4)+SUMIFS(Ostalo[Iznos čeka],Ostalo[Šifra glavne knjige],SažetakMjesečnihTroškova[[#This Row],[Šifra glavne knjige]],Ostalo[Pokrenut je zahtjev za provjeru datuma],\">=\"&DATEVALUE(\" 1 \"&SažetakMjesečnihTroškova[[#Headers],[Siječanj]]&_GODINA),Ostalo[Pokrenut je zahtjev za provjeru datuma],\"<=\"&D$4)","v":{"v":0,"d":"0.00 kn"}},{"$f":"SUMIFS(TroškoviPoStavkama[Iznos čeka],TroškoviPoStavkama[Šifra glavne knjige],SažetakMjesečnihTroškova[[#This Row],[Šifra glavne knjige]],TroškoviPoStavkama[Datum izdavanja računa],\">=\"&E$3,TroškoviPoStavkama[Datum izdavanja računa],\"<=\"&E$4)+SUMIFS(Ostalo[Iznos čeka],Ostalo[Šifra glavne knjige],SažetakMjesečnihTroškova[[#This Row],[Šifra glavne knjige]],Ostalo[Pokrenut je zahtjev za provjeru datuma],\">=\"&DATEVALUE(\" 1 \"&SažetakMjesečnihTroškova[[#Headers],[Veljača]]&_GODINA),Ostalo[Pokrenut je zahtjev za provjeru datuma],\"<=\"&E$4)","v":{"v":0,"d":"0.00 kn"}},{"$f":"SUMIFS(TroškoviPoStavkama[Iznos čeka],TroškoviPoStavkama[Šifra glavne knjige],SažetakMjesečnihTroškova[[#This Row],[Šifra glavne knjige]],TroškoviPoStavkama[Datum izdavanja računa],\">=\"&F$3,TroškoviPoStavkama[Datum izdavanja računa],\"<=\"&F$4)+SUMIFS(Ostalo[Iznos čeka],Ostalo[Šifra glavne knjige],SažetakMjesečnihTroškova[[#This Row],[Šifra glavne knjige]],Ostalo[Pokrenut je zahtjev za provjeru datuma],\">=\"&DATEVALUE(\" 1 \"&SažetakMjesečnihTroškova[[#Headers],[Ožujak]]&_GODINA),Ostalo[Pokrenut je zahtjev za provjeru datuma],\"<=\"&F$4)","v":{"v":0,"d":"0.00 kn"}},{"$f":"SUMIFS(TroškoviPoStavkama[Iznos čeka],TroškoviPoStavkama[Šifra glavne knjige],SažetakMjesečnihTroškova[[#This Row],[Šifra glavne knjige]],TroškoviPoStavkama[Datum izdavanja računa],\">=\"&G$3,TroškoviPoStavkama[Datum izdavanja računa],\"<=\"&G$4)+SUMIFS(Ostalo[Iznos čeka],Ostalo[Šifra glavne knjige],SažetakMjesečnihTroškova[[#This Row],[Šifra glavne knjige]],Ostalo[Pokrenut je zahtjev za provjeru datuma],\">=\"&DATEVALUE(\" 1 \"&SažetakMjesečnihTroškova[[#Headers],[Travanj]]&_GODINA),Ostalo[Pokrenut je zahtjev za provjeru datuma],\"<=\"&G$4)","v":{"v":0,"d":"0.00 kn"}},{"$f":"SUMIFS(TroškoviPoStavkama[Iznos čeka],TroškoviPoStavkama[Šifra glavne knjige],SažetakMjesečnihTroškova[[#This Row],[Šifra glavne knjige]],TroškoviPoStavkama[Datum izdavanja računa],\">=\"&H$3,TroškoviPoStavkama[Datum izdavanja računa],\"<=\"&H$4)+SUMIFS(Ostalo[Iznos čeka],Ostalo[Šifra glavne knjige],SažetakMjesečnihTroškova[[#This Row],[Šifra glavne knjige]],Ostalo[Pokrenut je zahtjev za provjeru datuma],\">=\"&DATEVALUE(\" 1 \"&SažetakMjesečnihTroškova[[#Headers],[Svibanj]]&_GODINA),Ostalo[Pokrenut je zahtjev za provjeru datuma],\"<=\"&H$4)","v":{"v":0,"d":"0.00 kn"}},{"$f":"SUMIFS(TroškoviPoStavkama[Iznos čeka],TroškoviPoStavkama[Šifra glavne knjige],SažetakMjesečnihTroškova[[#This Row],[Šifra glavne knjige]],TroškoviPoStavkama[Datum izdavanja računa],\">=\"&I$3,TroškoviPoStavkama[Datum izdavanja računa],\"<=\"&I$4)+SUMIFS(Ostalo[Iznos čeka],Ostalo[Šifra glavne knjige],SažetakMjesečnihTroškova[[#This Row],[Šifra glavne knjige]],Ostalo[Pokrenut je zahtjev za provjeru datuma],\">=\"&DATEVALUE(\" 1 \"&SažetakMjesečnihTroškova[[#Headers],[Lipanj]]&_GODINA),Ostalo[Pokrenut je zahtjev za provjeru datuma],\"<=\"&I$4)","v":{"v":0,"d":"0.00 kn"}},{"$f":"SUMIFS(TroškoviPoStavkama[Iznos čeka],TroškoviPoStavkama[Šifra glavne knjige],SažetakMjesečnihTroškova[[#This Row],[Šifra glavne knjige]],TroškoviPoStavkama[Datum izdavanja računa],\">=\"&J$3,TroškoviPoStavkama[Datum izdavanja računa],\"<=\"&J$4)+SUMIFS(Ostalo[Iznos čeka],Ostalo[Šifra glavne knjige],SažetakMjesečnihTroškova[[#This Row],[Šifra glavne knjige]],Ostalo[Pokrenut je zahtjev za provjeru datuma],\">=\"&DATEVALUE(\" 1 \"&SažetakMjesečnihTroškova[[#Headers],[Srpanj]]&_GODINA),Ostalo[Pokrenut je zahtjev za provjeru datuma],\"<=\"&J$4)","v":{"v":0,"d":"0.00 kn"}},{"$f":"SUMIFS(TroškoviPoStavkama[Iznos čeka],TroškoviPoStavkama[Šifra glavne knjige],SažetakMjesečnihTroškova[[#This Row],[Šifra glavne knjige]],TroškoviPoStavkama[Datum izdavanja računa],\">=\"&K$3,TroškoviPoStavkama[Datum izdavanja računa],\"<=\"&K$4)+SUMIFS(Ostalo[Iznos čeka],Ostalo[Šifra glavne knjige],SažetakMjesečnihTroškova[[#This Row],[Šifra glavne knjige]],Ostalo[Pokrenut je zahtjev za provjeru datuma],\">=\"&DATEVALUE(\" 1 \"&SažetakMjesečnihTroškova[[#Headers],[Kolovoz]]&_GODINA),Ostalo[Pokrenut je zahtjev za provjeru datuma],\"<=\"&K$4)","v":{"v":0,"d":"0.00 kn"}},{"$f":"SUMIFS(TroškoviPoStavkama[Iznos čeka],TroškoviPoStavkama[Šifra glavne knjige],SažetakMjesečnihTroškova[[#This Row],[Šifra glavne knjige]],TroškoviPoStavkama[Datum izdavanja računa],\">=\"&L$3,TroškoviPoStavkama[Datum izdavanja računa],\"<=\"&L$4)+SUMIFS(Ostalo[Iznos čeka],Ostalo[Šifra glavne knjige],SažetakMjesečnihTroškova[[#This Row],[Šifra glavne knjige]],Ostalo[Pokrenut je zahtjev za provjeru datuma],\">=\"&DATEVALUE(\" 1 \"&SažetakMjesečnihTroškova[[#Headers],[Rujan]]&_GODINA),Ostalo[Pokrenut je zahtjev za provjeru datuma],\"<=\"&L$4)","v":{"v":0,"d":"0.00 kn"}},{"$f":"SUMIFS(TroškoviPoStavkama[Iznos čeka],TroškoviPoStavkama[Šifra glavne knjige],SažetakMjesečnihTroškova[[#This Row],[Šifra glavne knjige]],TroškoviPoStavkama[Datum izdavanja računa],\">=\"&M$3,TroškoviPoStavkama[Datum izdavanja računa],\"<=\"&M$4)+SUMIFS(Ostalo[Iznos čeka],Ostalo[Šifra glavne knjige],SažetakMjesečnihTroškova[[#This Row],[Šifra glavne knjige]],Ostalo[Pokrenut je zahtjev za provjeru datuma],\">=\"&DATEVALUE(\" 1 \"&SažetakMjesečnihTroškova[[#Headers],[Listopad]]&_GODINA),Ostalo[Pokrenut je zahtjev za provjeru datuma],\"<=\"&M$4)","v":{"v":0,"d":"0.00 kn"}},{"$f":"SUMIFS(TroškoviPoStavkama[Iznos čeka],TroškoviPoStavkama[Šifra glavne knjige],SažetakMjesečnihTroškova[[#This Row],[Šifra glavne knjige]],TroškoviPoStavkama[Datum izdavanja računa],\">=\"&N$3,TroškoviPoStavkama[Datum izdavanja računa],\"<=\"&N$4)+SUMIFS(Ostalo[Iznos čeka],Ostalo[Šifra glavne knjige],SažetakMjesečnihTroškova[[#This Row],[Šifra glavne knjige]],Ostalo[Pokrenut je zahtjev za provjeru datuma],\">=\"&DATEVALUE(\" 1 \"&SažetakMjesečnihTroškova[[#Headers],[Studeni]]&_GODINA),Ostalo[Pokrenut je zahtjev za provjeru datuma],\"<=\"&N$4)","v":{"v":0,"d":"0.00 kn"}},{"$f":"SUMIFS(TroškoviPoStavkama[Iznos čeka],TroškoviPoStavkama[Šifra glavne knjige],SažetakMjesečnihTroškova[[#This Row],[Šifra glavne knjige]],TroškoviPoStavkama[Datum izdavanja računa],\">=\"&O$3,TroškoviPoStavkama[Datum izdavanja računa],\"<=\"&O$4)+SUMIFS(Ostalo[Iznos čeka],Ostalo[Šifra glavne knjige],SažetakMjesečnihTroškova[[#This Row],[Šifra glavne knjige]],Ostalo[Pokrenut je zahtjev za provjeru datuma],\">=\"&DATEVALUE(\" 1 \"&SažetakMjesečnihTroškova[[#Headers],[Prosinac]]&_GODINA),Ostalo[Pokrenut je zahtjev za provjeru datuma],\"<=\"&O$4)","v":{"v":0,"d":"0.00 kn"}},{"$f":"SUM(SažetakMjesečnihTroškova[[#This Row],[Siječanj]:[Prosinac]])","v":{"v":0,"d":"0.00 kn"}}]
[null,10000,"Marketing",{"$f":"SUMIFS(TroškoviPoStavkama[Iznos čeka],TroškoviPoStavkama[Šifra glavne knjige],SažetakMjesečnihTroškova[[#This Row],[Šifra glavne knjige]],TroškoviPoStavkama[Datum izdavanja računa],\">=\"&D$3,TroškoviPoStavkama[Datum izdavanja računa],\"<=\"&D$4)+SUMIFS(Ostalo[Iznos čeka],Ostalo[Šifra glavne knjige],SažetakMjesečnihTroškova[[#This Row],[Šifra glavne knjige]],Ostalo[Pokrenut je zahtjev za provjeru datuma],\">=\"&DATEVALUE(\" 1 \"&SažetakMjesečnihTroškova[[#Headers],[Siječanj]]&_GODINA),Ostalo[Pokrenut je zahtjev za provjeru datuma],\"<=\"&D$4)","v":{"v":0,"d":"0.00 kn"}},{"$f":"SUMIFS(TroškoviPoStavkama[Iznos čeka],TroškoviPoStavkama[Šifra glavne knjige],SažetakMjesečnihTroškova[[#This Row],[Šifra glavne knjige]],TroškoviPoStavkama[Datum izdavanja računa],\">=\"&E$3,TroškoviPoStavkama[Datum izdavanja računa],\"<=\"&E$4)+SUMIFS(Ostalo[Iznos čeka],Ostalo[Šifra glavne knjige],SažetakMjesečnihTroškova[[#This Row],[Šifra glavne knjige]],Ostalo[Pokrenut je zahtjev za provjeru datuma],\">=\"&DATEVALUE(\" 1 \"&SažetakMjesečnihTroškova[[#Headers],[Veljača]]&_GODINA),Ostalo[Pokrenut je zahtjev za provjeru datuma],\"<=\"&E$4)","v":{"v":0,"d":"0.00 kn"}},{"$f":"SUMIFS(TroškoviPoStavkama[Iznos čeka],TroškoviPoStavkama[Šifra glavne knjige],SažetakMjesečnihTroškova[[#This Row],[Šifra glavne knjige]],TroškoviPoStavkama[Datum izdavanja računa],\">=\"&F$3,TroškoviPoStavkama[Datum izdavanja računa],\"<=\"&F$4)+SUMIFS(Ostalo[Iznos čeka],Ostalo[Šifra glavne knjige],SažetakMjesečnihTroškova[[#This Row],[Šifra glavne knjige]],Ostalo[Pokrenut je zahtjev za provjeru datuma],\">=\"&DATEVALUE(\" 1 \"&SažetakMjesečnihTroškova[[#Headers],[Ožujak]]&_GODINA),Ostalo[Pokrenut je zahtjev za provjeru datuma],\"<=\"&F$4)","v":{"v":0,"d":"0.00 kn"}},{"$f":"SUMIFS(TroškoviPoStavkama[Iznos čeka],TroškoviPoStavkama[Šifra glavne knjige],SažetakMjesečnihTroškova[[#This Row],[Šifra glavne knjige]],TroškoviPoStavkama[Datum izdavanja računa],\">=\"&G$3,TroškoviPoStavkama[Datum izdavanja računa],\"<=\"&G$4)+SUMIFS(Ostalo[Iznos čeka],Ostalo[Šifra glavne knjige],SažetakMjesečnihTroškova[[#This Row],[Šifra glavne knjige]],Ostalo[Pokrenut je zahtjev za provjeru datuma],\">=\"&DATEVALUE(\" 1 \"&SažetakMjesečnihTroškova[[#Headers],[Travanj]]&_GODINA),Ostalo[Pokrenut je zahtjev za provjeru datuma],\"<=\"&G$4)","v":{"v":0,"d":"0.00 kn"}},{"$f":"SUMIFS(TroškoviPoStavkama[Iznos čeka],TroškoviPoStavkama[Šifra glavne knjige],SažetakMjesečnihTroškova[[#This Row],[Šifra glavne knjige]],TroškoviPoStavkama[Datum izdavanja računa],\">=\"&H$3,TroškoviPoStavkama[Datum izdavanja računa],\"<=\"&H$4)+SUMIFS(Ostalo[Iznos čeka],Ostalo[Šifra glavne knjige],SažetakMjesečnihTroškova[[#This Row],[Šifra glavne knjige]],Ostalo[Pokrenut je zahtjev za provjeru datuma],\">=\"&DATEVALUE(\" 1 \"&SažetakMjesečnihTroškova[[#Headers],[Svibanj]]&_GODINA),Ostalo[Pokrenut je zahtjev za provjeru datuma],\"<=\"&H$4)","v":{"v":0,"d":"0.00 kn"}},{"$f":"SUMIFS(TroškoviPoStavkama[Iznos čeka],TroškoviPoStavkama[Šifra glavne knjige],SažetakMjesečnihTroškova[[#This Row],[Šifra glavne knjige]],TroškoviPoStavkama[Datum izdavanja računa],\">=\"&I$3,TroškoviPoStavkama[Datum izdavanja računa],\"<=\"&I$4)+SUMIFS(Ostalo[Iznos čeka],Ostalo[Šifra glavne knjige],SažetakMjesečnihTroškova[[#This Row],[Šifra glavne knjige]],Ostalo[Pokrenut je zahtjev za provjeru datuma],\">=\"&DATEVALUE(\" 1 \"&SažetakMjesečnihTroškova[[#Headers],[Lipanj]]&_GODINA),Ostalo[Pokrenut je zahtjev za provjeru datuma],\"<=\"&I$4)","v":{"v":0,"d":"0.00 kn"}},{"$f":"SUMIFS(TroškoviPoStavkama[Iznos čeka],TroškoviPoStavkama[Šifra glavne knjige],SažetakMjesečnihTroškova[[#This Row],[Šifra glavne knjige]],TroškoviPoStavkama[Datum izdavanja računa],\">=\"&J$3,TroškoviPoStavkama[Datum izdavanja računa],\"<=\"&J$4)+SUMIFS(Ostalo[Iznos čeka],Ostalo[Šifra glavne knjige],SažetakMjesečnihTroškova[[#This Row],[Šifra glavne knjige]],Ostalo[Pokrenut je zahtjev za provjeru datuma],\">=\"&DATEVALUE(\" 1 \"&SažetakMjesečnihTroškova[[#Headers],[Srpanj]]&_GODINA),Ostalo[Pokrenut je zahtjev za provjeru datuma],\"<=\"&J$4)","v":{"v":0,"d":"0.00 kn"}},{"$f":"SUMIFS(TroškoviPoStavkama[Iznos čeka],TroškoviPoStavkama[Šifra glavne knjige],SažetakMjesečnihTroškova[[#This Row],[Šifra glavne knjige]],TroškoviPoStavkama[Datum izdavanja računa],\">=\"&K$3,TroškoviPoStavkama[Datum izdavanja računa],\"<=\"&K$4)+SUMIFS(Ostalo[Iznos čeka],Ostalo[Šifra glavne knjige],SažetakMjesečnihTroškova[[#This Row],[Šifra glavne knjige]],Ostalo[Pokrenut je zahtjev za provjeru datuma],\">=\"&DATEVALUE(\" 1 \"&SažetakMjesečnihTroškova[[#Headers],[Kolovoz]]&_GODINA),Ostalo[Pokrenut je zahtjev za provjeru datuma],\"<=\"&K$4)","v":{"v":0,"d":"0.00 kn"}},{"$f":"SUMIFS(TroškoviPoStavkama[Iznos čeka],TroškoviPoStavkama[Šifra glavne knjige],SažetakMjesečnihTroškova[[#This Row],[Šifra glavne knjige]],TroškoviPoStavkama[Datum izdavanja računa],\">=\"&L$3,TroškoviPoStavkama[Datum izdavanja računa],\"<=\"&L$4)+SUMIFS(Ostalo[Iznos čeka],Ostalo[Šifra glavne knjige],SažetakMjesečnihTroškova[[#This Row],[Šifra glavne knjige]],Ostalo[Pokrenut je zahtjev za provjeru datuma],\">=\"&DATEVALUE(\" 1 \"&SažetakMjesečnihTroškova[[#Headers],[Rujan]]&_GODINA),Ostalo[Pokrenut je zahtjev za provjeru datuma],\"<=\"&L$4)","v":{"v":0,"d":"0.00 kn"}},{"$f":"SUMIFS(TroškoviPoStavkama[Iznos čeka],TroškoviPoStavkama[Šifra glavne knjige],SažetakMjesečnihTroškova[[#This Row],[Šifra glavne knjige]],TroškoviPoStavkama[Datum izdavanja računa],\">=\"&M$3,TroškoviPoStavkama[Datum izdavanja računa],\"<=\"&M$4)+SUMIFS(Ostalo[Iznos čeka],Ostalo[Šifra glavne knjige],SažetakMjesečnihTroškova[[#This Row],[Šifra glavne knjige]],Ostalo[Pokrenut je zahtjev za provjeru datuma],\">=\"&DATEVALUE(\" 1 \"&SažetakMjesečnihTroškova[[#Headers],[Listopad]]&_GODINA),Ostalo[Pokrenut je zahtjev za provjeru datuma],\"<=\"&M$4)","v":{"v":0,"d":"0.00 kn"}},{"$f":"SUMIFS(TroškoviPoStavkama[Iznos čeka],TroškoviPoStavkama[Šifra glavne knjige],SažetakMjesečnihTroškova[[#This Row],[Šifra glavne knjige]],TroškoviPoStavkama[Datum izdavanja računa],\">=\"&N$3,TroškoviPoStavkama[Datum izdavanja računa],\"<=\"&N$4)+SUMIFS(Ostalo[Iznos čeka],Ostalo[Šifra glavne knjige],SažetakMjesečnihTroškova[[#This Row],[Šifra glavne knjige]],Ostalo[Pokrenut je zahtjev za provjeru datuma],\">=\"&DATEVALUE(\" 1 \"&SažetakMjesečnihTroškova[[#Headers],[Studeni]]&_GODINA),Ostalo[Pokrenut je zahtjev za provjeru datuma],\"<=\"&N$4)","v":{"v":0,"d":"0.00 kn"}},{"$f":"SUMIFS(TroškoviPoStavkama[Iznos čeka],TroškoviPoStavkama[Šifra glavne knjige],SažetakMjesečnihTroškova[[#This Row],[Šifra glavne knjige]],TroškoviPoStavkama[Datum izdavanja računa],\">=\"&O$3,TroškoviPoStavkama[Datum izdavanja računa],\"<=\"&O$4)+SUMIFS(Ostalo[Iznos čeka],Ostalo[Šifra glavne knjige],SažetakMjesečnihTroškova[[#This Row],[Šifra glavne knjige]],Ostalo[Pokrenut je zahtjev za provjeru datuma],\">=\"&DATEVALUE(\" 1 \"&SažetakMjesečnihTroškova[[#Headers],[Prosinac]]&_GODINA),Ostalo[Pokrenut je zahtjev za provjeru datuma],\"<=\"&O$4)","v":{"v":0,"d":"0.00 kn"}},{"$f":"SUM(SažetakMjesečnihTroškova[[#This Row],[Siječanj]:[Prosinac]])","v":{"v":0,"d":"0.00 kn"}}]
[null,11000,"Dobrotvorne udruge",{"$f":"SUMIFS(TroškoviPoStavkama[Iznos čeka],TroškoviPoStavkama[Šifra glavne knjige],SažetakMjesečnihTroškova[[#This Row],[Šifra glavne knjige]],TroškoviPoStavkama[Datum izdavanja računa],\">=\"&D$3,TroškoviPoStavkama[Datum izdavanja računa],\"<=\"&D$4)+SUMIFS(Ostalo[Iznos čeka],Ostalo[Šifra glavne knjige],SažetakMjesečnihTroškova[[#This Row],[Šifra glavne knjige]],Ostalo[Pokrenut je zahtjev za provjeru datuma],\">=\"&DATEVALUE(\" 1 \"&SažetakMjesečnihTroškova[[#Headers],[Siječanj]]&_GODINA),Ostalo[Pokrenut je zahtjev za provjeru datuma],\"<=\"&D$4)","v":{"v":0,"d":"0.00 kn"}},{"$f":"SUMIFS(TroškoviPoStavkama[Iznos čeka],TroškoviPoStavkama[Šifra glavne knjige],SažetakMjesečnihTroškova[[#This Row],[Šifra glavne knjige]],TroškoviPoStavkama[Datum izdavanja računa],\">=\"&E$3,TroškoviPoStavkama[Datum izdavanja računa],\"<=\"&E$4)+SUMIFS(Ostalo[Iznos čeka],Ostalo[Šifra glavne knjige],SažetakMjesečnihTroškova[[#This Row],[Šifra glavne knjige]],Ostalo[Pokrenut je zahtjev za provjeru datuma],\">=\"&DATEVALUE(\" 1 \"&SažetakMjesečnihTroškova[[#Headers],[Veljača]]&_GODINA),Ostalo[Pokrenut je zahtjev za provjeru datuma],\"<=\"&E$4)","v":{"v":0,"d":"0.00 kn"}},{"$f":"SUMIFS(TroškoviPoStavkama[Iznos čeka],TroškoviPoStavkama[Šifra glavne knjige],SažetakMjesečnihTroškova[[#This Row],[Šifra glavne knjige]],TroškoviPoStavkama[Datum izdavanja računa],\">=\"&F$3,TroškoviPoStavkama[Datum izdavanja računa],\"<=\"&F$4)+SUMIFS(Ostalo[Iznos čeka],Ostalo[Šifra glavne knjige],SažetakMjesečnihTroškova[[#This Row],[Šifra glavne knjige]],Ostalo[Pokrenut je zahtjev za provjeru datuma],\">=\"&DATEVALUE(\" 1 \"&SažetakMjesečnihTroškova[[#Headers],[Ožujak]]&_GODINA),Ostalo[Pokrenut je zahtjev za provjeru datuma],\"<=\"&F$4)","v":{"v":0,"d":"0.00 kn"}},{"$f":"SUMIFS(TroškoviPoStavkama[Iznos čeka],TroškoviPoStavkama[Šifra glavne knjige],SažetakMjesečnihTroškova[[#This Row],[Šifra glavne knjige]],TroškoviPoStavkama[Datum izdavanja računa],\">=\"&G$3,TroškoviPoStavkama[Datum izdavanja računa],\"<=\"&G$4)+SUMIFS(Ostalo[Iznos čeka],Ostalo[Šifra glavne knjige],SažetakMjesečnihTroškova[[#This Row],[Šifra glavne knjige]],Ostalo[Pokrenut je zahtjev za provjeru datuma],\">=\"&DATEVALUE(\" 1 \"&SažetakMjesečnihTroškova[[#Headers],[Travanj]]&_GODINA),Ostalo[Pokrenut je zahtjev za provjeru datuma],\"<=\"&G$4)","v":{"v":0,"d":"0.00 kn"}},{"$f":"SUMIFS(TroškoviPoStavkama[Iznos čeka],TroškoviPoStavkama[Šifra glavne knjige],SažetakMjesečnihTroškova[[#This Row],[Šifra glavne knjige]],TroškoviPoStavkama[Datum izdavanja računa],\">=\"&H$3,TroškoviPoStavkama[Datum izdavanja računa],\"<=\"&H$4)+SUMIFS(Ostalo[Iznos čeka],Ostalo[Šifra glavne knjige],SažetakMjesečnihTroškova[[#This Row],[Šifra glavne knjige]],Ostalo[Pokrenut je zahtjev za provjeru datuma],\">=\"&DATEVALUE(\" 1 \"&SažetakMjesečnihTroškova[[#Headers],[Svibanj]]&_GODINA),Ostalo[Pokrenut je zahtjev za provjeru datuma],\"<=\"&H$4)","v":{"v":0,"d":"0.00 kn"}},{"$f":"SUMIFS(TroškoviPoStavkama[Iznos čeka],TroškoviPoStavkama[Šifra glavne knjige],SažetakMjesečnihTroškova[[#This Row],[Šifra glavne knjige]],TroškoviPoStavkama[Datum izdavanja računa],\">=\"&I$3,TroškoviPoStavkama[Datum izdavanja računa],\"<=\"&I$4)+SUMIFS(Ostalo[Iznos čeka],Ostalo[Šifra glavne knjige],SažetakMjesečnihTroškova[[#This Row],[Šifra glavne knjige]],Ostalo[Pokrenut je zahtjev za provjeru datuma],\">=\"&DATEVALUE(\" 1 \"&SažetakMjesečnihTroškova[[#Headers],[Lipanj]]&_GODINA),Ostalo[Pokrenut je zahtjev za provjeru datuma],\"<=\"&I$4)","v":{"v":0,"d":"0.00 kn"}},{"$f":"SUMIFS(TroškoviPoStavkama[Iznos čeka],TroškoviPoStavkama[Šifra glavne knjige],SažetakMjesečnihTroškova[[#This Row],[Šifra glavne knjige]],TroškoviPoStavkama[Datum izdavanja računa],\">=\"&J$3,TroškoviPoStavkama[Datum izdavanja računa],\"<=\"&J$4)+SUMIFS(Ostalo[Iznos čeka],Ostalo[Šifra glavne knjige],SažetakMjesečnihTroškova[[#This Row],[Šifra glavne knjige]],Ostalo[Pokrenut je zahtjev za provjeru datuma],\">=\"&DATEVALUE(\" 1 \"&SažetakMjesečnihTroškova[[#Headers],[Srpanj]]&_GODINA),Ostalo[Pokrenut je zahtjev za provjeru datuma],\"<=\"&J$4)","v":{"v":0,"d":"0.00 kn"}},{"$f":"SUMIFS(TroškoviPoStavkama[Iznos čeka],TroškoviPoStavkama[Šifra glavne knjige],SažetakMjesečnihTroškova[[#This Row],[Šifra glavne knjige]],TroškoviPoStavkama[Datum izdavanja računa],\">=\"&K$3,TroškoviPoStavkama[Datum izdavanja računa],\"<=\"&K$4)+SUMIFS(Ostalo[Iznos čeka],Ostalo[Šifra glavne knjige],SažetakMjesečnihTroškova[[#This Row],[Šifra glavne knjige]],Ostalo[Pokrenut je zahtjev za provjeru datuma],\">=\"&DATEVALUE(\" 1 \"&SažetakMjesečnihTroškova[[#Headers],[Kolovoz]]&_GODINA),Ostalo[Pokrenut je zahtjev za provjeru datuma],\"<=\"&K$4)","v":{"v":0,"d":"0.00 kn"}},{"$f":"SUMIFS(TroškoviPoStavkama[Iznos čeka],TroškoviPoStavkama[Šifra glavne knjige],SažetakMjesečnihTroškova[[#This Row],[Šifra glavne knjige]],TroškoviPoStavkama[Datum izdavanja računa],\">=\"&L$3,TroškoviPoStavkama[Datum izdavanja računa],\"<=\"&L$4)+SUMIFS(Ostalo[Iznos čeka],Ostalo[Šifra glavne knjige],SažetakMjesečnihTroškova[[#This Row],[Šifra glavne knjige]],Ostalo[Pokrenut je zahtjev za provjeru datuma],\">=\"&DATEVALUE(\" 1 \"&SažetakMjesečnihTroškova[[#Headers],[Rujan]]&_GODINA),Ostalo[Pokrenut je zahtjev za provjeru datuma],\"<=\"&L$4)","v":{"v":0,"d":"0.00 kn"}},{"$f":"SUMIFS(TroškoviPoStavkama[Iznos čeka],TroškoviPoStavkama[Šifra glavne knjige],SažetakMjesečnihTroškova[[#This Row],[Šifra glavne knjige]],TroškoviPoStavkama[Datum izdavanja računa],\">=\"&M$3,TroškoviPoStavkama[Datum izdavanja računa],\"<=\"&M$4)+SUMIFS(Ostalo[Iznos čeka],Ostalo[Šifra glavne knjige],SažetakMjesečnihTroškova[[#This Row],[Šifra glavne knjige]],Ostalo[Pokrenut je zahtjev za provjeru datuma],\">=\"&DATEVALUE(\" 1 \"&SažetakMjesečnihTroškova[[#Headers],[Listopad]]&_GODINA),Ostalo[Pokrenut je zahtjev za provjeru datuma],\"<=\"&M$4)","v":{"v":0,"d":"0.00 kn"}},{"$f":"SUMIFS(TroškoviPoStavkama[Iznos čeka],TroškoviPoStavkama[Šifra glavne knjige],SažetakMjesečnihTroškova[[#This Row],[Šifra glavne knjige]],TroškoviPoStavkama[Datum izdavanja računa],\">=\"&N$3,TroškoviPoStavkama[Datum izdavanja računa],\"<=\"&N$4)+SUMIFS(Ostalo[Iznos čeka],Ostalo[Šifra glavne knjige],SažetakMjesečnihTroškova[[#This Row],[Šifra glavne knjige]],Ostalo[Pokrenut je zahtjev za provjeru datuma],\">=\"&DATEVALUE(\" 1 \"&SažetakMjesečnihTroškova[[#Headers],[Studeni]]&_GODINA),Ostalo[Pokrenut je zahtjev za provjeru datuma],\"<=\"&N$4)","v":{"v":0,"d":"0.00 kn"}},{"$f":"SUMIFS(TroškoviPoStavkama[Iznos čeka],TroškoviPoStavkama[Šifra glavne knjige],SažetakMjesečnihTroškova[[#This Row],[Šifra glavne knjige]],TroškoviPoStavkama[Datum izdavanja računa],\">=\"&O$3,TroškoviPoStavkama[Datum izdavanja računa],\"<=\"&O$4)+SUMIFS(Ostalo[Iznos čeka],Ostalo[Šifra glavne knjige],SažetakMjesečnihTroškova[[#This Row],[Šifra glavne knjige]],Ostalo[Pokrenut je zahtjev za provjeru datuma],\">=\"&DATEVALUE(\" 1 \"&SažetakMjesečnihTroškova[[#Headers],[Prosinac]]&_GODINA),Ostalo[Pokrenut je zahtjev za provjeru datuma],\"<=\"&O$4)","v":{"v":0,"d":"0.00 kn"}},{"$f":"SUM(SažetakMjesečnihTroškova[[#This Row],[Siječanj]:[Prosinac]])","v":{"v":0,"d":"0.00 kn"}}]
[null,12000,"Pokroviteljstva",{"$f":"SUMIFS(TroškoviPoStavkama[Iznos čeka],TroškoviPoStavkama[Šifra glavne knjige],SažetakMjesečnihTroškova[[#This Row],[Šifra glavne knjige]],TroškoviPoStavkama[Datum izdavanja računa],\">=\"&D$3,TroškoviPoStavkama[Datum izdavanja računa],\"<=\"&D$4)+SUMIFS(Ostalo[Iznos čeka],Ostalo[Šifra glavne knjige],SažetakMjesečnihTroškova[[#This Row],[Šifra glavne knjige]],Ostalo[Pokrenut je zahtjev za provjeru datuma],\">=\"&DATEVALUE(\" 1 \"&SažetakMjesečnihTroškova[[#Headers],[Siječanj]]&_GODINA),Ostalo[Pokrenut je zahtjev za provjeru datuma],\"<=\"&D$4)","v":{"v":0,"d":"0.00 kn"}},{"$f":"SUMIFS(TroškoviPoStavkama[Iznos čeka],TroškoviPoStavkama[Šifra glavne knjige],SažetakMjesečnihTroškova[[#This Row],[Šifra glavne knjige]],TroškoviPoStavkama[Datum izdavanja računa],\">=\"&E$3,TroškoviPoStavkama[Datum izdavanja računa],\"<=\"&E$4)+SUMIFS(Ostalo[Iznos čeka],Ostalo[Šifra glavne knjige],SažetakMjesečnihTroškova[[#This Row],[Šifra glavne knjige]],Ostalo[Pokrenut je zahtjev za provjeru datuma],\">=\"&DATEVALUE(\" 1 \"&SažetakMjesečnihTroškova[[#Headers],[Veljača]]&_GODINA),Ostalo[Pokrenut je zahtjev za provjeru datuma],\"<=\"&E$4)","v":{"v":0,"d":"0.00 kn"}},{"$f":"SUMIFS(TroškoviPoStavkama[Iznos čeka],TroškoviPoStavkama[Šifra glavne knjige],SažetakMjesečnihTroškova[[#This Row],[Šifra glavne knjige]],TroškoviPoStavkama[Datum izdavanja računa],\">=\"&F$3,TroškoviPoStavkama[Datum izdavanja računa],\"<=\"&F$4)+SUMIFS(Ostalo[Iznos čeka],Ostalo[Šifra glavne knjige],SažetakMjesečnihTroškova[[#This Row],[Šifra glavne knjige]],Ostalo[Pokrenut je zahtjev za provjeru datuma],\">=\"&DATEVALUE(\" 1 \"&SažetakMjesečnihTroškova[[#Headers],[Ožujak]]&_GODINA),Ostalo[Pokrenut je zahtjev za provjeru datuma],\"<=\"&F$4)","v":{"v":0,"d":"0.00 kn"}},{"$f":"SUMIFS(TroškoviPoStavkama[Iznos čeka],TroškoviPoStavkama[Šifra glavne knjige],SažetakMjesečnihTroškova[[#This Row],[Šifra glavne knjige]],TroškoviPoStavkama[Datum izdavanja računa],\">=\"&G$3,TroškoviPoStavkama[Datum izdavanja računa],\"<=\"&G$4)+SUMIFS(Ostalo[Iznos čeka],Ostalo[Šifra glavne knjige],SažetakMjesečnihTroškova[[#This Row],[Šifra glavne knjige]],Ostalo[Pokrenut je zahtjev za provjeru datuma],\">=\"&DATEVALUE(\" 1 \"&SažetakMjesečnihTroškova[[#Headers],[Travanj]]&_GODINA),Ostalo[Pokrenut je zahtjev za provjeru datuma],\"<=\"&G$4)","v":{"v":0,"d":"0.00 kn"}},{"$f":"SUMIFS(TroškoviPoStavkama[Iznos čeka],TroškoviPoStavkama[Šifra glavne knjige],SažetakMjesečnihTroškova[[#This Row],[Šifra glavne knjige]],TroškoviPoStavkama[Datum izdavanja računa],\">=\"&H$3,TroškoviPoStavkama[Datum izdavanja računa],\"<=\"&H$4)+SUMIFS(Ostalo[Iznos čeka],Ostalo[Šifra glavne knjige],SažetakMjesečnihTroškova[[#This Row],[Šifra glavne knjige]],Ostalo[Pokrenut je zahtjev za provjeru datuma],\">=\"&DATEVALUE(\" 1 \"&SažetakMjesečnihTroškova[[#Headers],[Svibanj]]&_GODINA),Ostalo[Pokrenut je zahtjev za provjeru datuma],\"<=\"&H$4)","v":{"v":0,"d":"0.00 kn"}},{"$f":"SUMIFS(TroškoviPoStavkama[Iznos čeka],TroškoviPoStavkama[Šifra glavne knjige],SažetakMjesečnihTroškova[[#This Row],[Šifra glavne knjige]],TroškoviPoStavkama[Datum izdavanja računa],\">=\"&I$3,TroškoviPoStavkama[Datum izdavanja računa],\"<=\"&I$4)+SUMIFS(Ostalo[Iznos čeka],Ostalo[Šifra glavne knjige],SažetakMjesečnihTroškova[[#This Row],[Šifra glavne knjige]],Ostalo[Pokrenut je zahtjev za provjeru datuma],\">=\"&DATEVALUE(\" 1 \"&SažetakMjesečnihTroškova[[#Headers],[Lipanj]]&_GODINA),Ostalo[Pokrenut je zahtjev za provjeru datuma],\"<=\"&I$4)","v":{"v":0,"d":"0.00 kn"}},{"$f":"SUMIFS(TroškoviPoStavkama[Iznos čeka],TroškoviPoStavkama[Šifra glavne knjige],SažetakMjesečnihTroškova[[#This Row],[Šifra glavne knjige]],TroškoviPoStavkama[Datum izdavanja računa],\">=\"&J$3,TroškoviPoStavkama[Datum izdavanja računa],\"<=\"&J$4)+SUMIFS(Ostalo[Iznos čeka],Ostalo[Šifra glavne knjige],SažetakMjesečnihTroškova[[#This Row],[Šifra glavne knjige]],Ostalo[Pokrenut je zahtjev za provjeru datuma],\">=\"&DATEVALUE(\" 1 \"&SažetakMjesečnihTroškova[[#Headers],[Srpanj]]&_GODINA),Ostalo[Pokrenut je zahtjev za provjeru datuma],\"<=\"&J$4)","v":{"v":0,"d":"0.00 kn"}},{"$f":"SUMIFS(TroškoviPoStavkama[Iznos čeka],TroškoviPoStavkama[Šifra glavne knjige],SažetakMjesečnihTroškova[[#This Row],[Šifra glavne knjige]],TroškoviPoStavkama[Datum izdavanja računa],\">=\"&K$3,TroškoviPoStavkama[Datum izdavanja računa],\"<=\"&K$4)+SUMIFS(Ostalo[Iznos čeka],Ostalo[Šifra glavne knjige],SažetakMjesečnihTroškova[[#This Row],[Šifra glavne knjige]],Ostalo[Pokrenut je zahtjev za provjeru datuma],\">=\"&DATEVALUE(\" 1 \"&SažetakMjesečnihTroškova[[#Headers],[Kolovoz]]&_GODINA),Ostalo[Pokrenut je zahtjev za provjeru datuma],\"<=\"&K$4)","v":{"v":0,"d":"0.00 kn"}},{"$f":"SUMIFS(TroškoviPoStavkama[Iznos čeka],TroškoviPoStavkama[Šifra glavne knjige],SažetakMjesečnihTroškova[[#This Row],[Šifra glavne knjige]],TroškoviPoStavkama[Datum izdavanja računa],\">=\"&L$3,TroškoviPoStavkama[Datum izdavanja računa],\"<=\"&L$4)+SUMIFS(Ostalo[Iznos čeka],Ostalo[Šifra glavne knjige],SažetakMjesečnihTroškova[[#This Row],[Šifra glavne knjige]],Ostalo[Pokrenut je zahtjev za provjeru datuma],\">=\"&DATEVALUE(\" 1 \"&SažetakMjesečnihTroškova[[#Headers],[Rujan]]&_GODINA),Ostalo[Pokrenut je zahtjev za provjeru datuma],\"<=\"&L$4)","v":{"v":0,"d":"0.00 kn"}},{"$f":"SUMIFS(TroškoviPoStavkama[Iznos čeka],TroškoviPoStavkama[Šifra glavne knjige],SažetakMjesečnihTroškova[[#This Row],[Šifra glavne knjige]],TroškoviPoStavkama[Datum izdavanja računa],\">=\"&M$3,TroškoviPoStavkama[Datum izdavanja računa],\"<=\"&M$4)+SUMIFS(Ostalo[Iznos čeka],Ostalo[Šifra glavne knjige],SažetakMjesečnihTroškova[[#This Row],[Šifra glavne knjige]],Ostalo[Pokrenut je zahtjev za provjeru datuma],\">=\"&DATEVALUE(\" 1 \"&SažetakMjesečnihTroškova[[#Headers],[Listopad]]&_GODINA),Ostalo[Pokrenut je zahtjev za provjeru datuma],\"<=\"&M$4)","v":{"v":0,"d":"0.00 kn"}},{"$f":"SUMIFS(TroškoviPoStavkama[Iznos čeka],TroškoviPoStavkama[Šifra glavne knjige],SažetakMjesečnihTroškova[[#This Row],[Šifra glavne knjige]],TroškoviPoStavkama[Datum izdavanja računa],\">=\"&N$3,TroškoviPoStavkama[Datum izdavanja računa],\"<=\"&N$4)+SUMIFS(Ostalo[Iznos čeka],Ostalo[Šifra glavne knjige],SažetakMjesečnihTroškova[[#This Row],[Šifra glavne knjige]],Ostalo[Pokrenut je zahtjev za provjeru datuma],\">=\"&DATEVALUE(\" 1 \"&SažetakMjesečnihTroškova[[#Headers],[Studeni]]&_GODINA),Ostalo[Pokrenut je zahtjev za provjeru datuma],\"<=\"&N$4)","v":{"v":0,"d":"0.00 kn"}},{"$f":"SUMIFS(TroškoviPoStavkama[Iznos čeka],TroškoviPoStavkama[Šifra glavne knjige],SažetakMjesečnihTroškova[[#This Row],[Šifra glavne knjige]],TroškoviPoStavkama[Datum izdavanja računa],\">=\"&O$3,TroškoviPoStavkama[Datum izdavanja računa],\"<=\"&O$4)+SUMIFS(Ostalo[Iznos čeka],Ostalo[Šifra glavne knjige],SažetakMjesečnihTroškova[[#This Row],[Šifra glavne knjige]],Ostalo[Pokrenut je zahtjev za provjeru datuma],\">=\"&DATEVALUE(\" 1 \"&SažetakMjesečnihTroškova[[#Headers],[Prosinac]]&_GODINA),Ostalo[Pokrenut je zahtjev za provjeru datuma],\"<=\"&O$4)","v":{"v":0,"d":"0.00 kn"}},{"$f":"SUM(SažetakMjesečnihTroškova[[#This Row],[Siječanj]:[Prosinac]])","v":{"v":0,"d":"0.00 kn"}}]
[null,"Zbroj",null,{"$f":"SUBTOTAL(109,SažetakMjesečnihTroškova[Siječanj])","v":{"v":0,"d":"0.00 kn"}},{"$f":"SUBTOTAL(109,SažetakMjesečnihTroškova[Veljača])","v":{"v":0,"d":"0.00 kn"}},{"$f":"SUBTOTAL(109,SažetakMjesečnihTroškova[Ožujak])","v":{"v":0,"d":"0.00 kn"}},{"$f":"SUBTOTAL(109,SažetakMjesečnihTroškova[Travanj])","v":{"v":0,"d":"0.00 kn"}},{"$f":"SUBTOTAL(109,SažetakMjesečnihTroškova[Svibanj])","v":{"v":0,"d":"0.00 kn"}},{"$f":"SUBTOTAL(109,SažetakMjesečnihTroškova[Lipanj])","v":{"v":0,"d":"0.00 kn"}},{"$f":"SUBTOTAL(109,SažetakMjesečnihTroškova[Srpanj])","v":{"v":0,"d":"0.00 kn"}},{"$f":"SUBTOTAL(109,SažetakMjesečnihTroškova[Kolovoz])","v":{"v":0,"d":"0.00 kn"}},{"$f":"SUBTOTAL(109,SažetakMjesečnihTroškova[Rujan])","v":{"v":0,"d":"0.00 kn"}},{"$f":"SUBTOTAL(109,SažetakMjesečnihTroškova[Listopad])","v":{"v":0,"d":"0.00 kn"}},{"$f":"SUBTOTAL(109,SažetakMjesečnihTroškova[Studeni])","v":{"v":0,"d":"0.00 kn"}},{"$f":"SUBTOTAL(109,SažetakMjesečnihTroškova[Prosinac])","v":{"v":0,"d":"0.00 kn"}},{"$f":"SUBTOTAL(109,SažetakMjesečnihTroškova[Zbroj])","v":{"v":0,"d":"0.00 kn"}}]

{"sheet":"TROŠKOVI PO STAVKAMA","index":2,"n_rows":6,"n_cols":10,"rows_kept":6,"merged":[[1,1,1,9],[2,1,2,5],[2,6,2,9]]}
[]
[null,"TROŠKOVI PO STAVKAMA"]
[]
[null,"Šifra glavne knjige","Datum izdavanja računa","Broj računa","Zatražio","Iznos čeka","Primatelj uplate","Namjena čeka","Način distribucije","Datum podnošenja"]
[null,1000,"Datum",100,"Vjekoslav Vlašić",{"v":750.75,"d":"750.75 kn"},"Consolidated Messenger ","Slanje e-pošte","Pošta","Datum"]
[null,7000,"Datum",101,"Jadranko Lukić",{"v":2500,"d":"2,500.00 kn"},"A. Datum Corporation ","2 stolna računala","Kredit","Datum"]

{"sheet":"DOBROTV. UDRUGE I POKROVITELJ.","index":3,"n_rows":6,"n_cols":12,"rows_kept":6,"merged":[[1,1,1,11],[2,1,2,5],[2,6,2,11]]}
[]
[null,"DOBROTVORNE UDRUGE I POKROVITELJSTVA"]
[]
[null,"Šifra glavne knjige","Pokrenut je zahtjev za provjeru datuma","Zatražio","Iznos čeka","Doprinosi za prethodnu godinu","Primatelj uplate","Namjena","Potpisao","Kategorija","Način distribucije","Datum podnošenja"]
[null,12000,"Datum","Zorica Crnić",{"v":1000,"d":"1,000.00 kn"},{"v":12,"d":"12.00 kn"},"School of Fine Art ","Školarine","Lucija Galić","Umjetnost","Ček","Datum"]
[null,11000,"Datum","Zorica Crnić",{"v":2500,"d":"2,500.00 kn"},{"v":0,"d":"0.00 kn"},"Wingtip Toys ","Zajednica","Marica Jurić","Zajednica","Ček","Datum"]